{"text_format":"1","workbook":"xlsx","n_sheets":18,"sheets":["CAPA","Analise mercado","Inovação produtiva","Capacidade","Folha2","Inv. Inicial","Postos Trabalho","VENDAS EXTERIOR","CRITERIOS_SELECAO_AUTOVAL","Indicadores","Financiamento","Balanço empresa ","Balanço da empresa pós Proj","D. Resultados empresa","D. Result da empresa pós Proj","Balanço do Projeto","D. Resultados do Projeto","Folha1"],"not_rendered":{"charts":0,"images":44,"macros":1,"external_links":3,"defined_names":93,"comments":3,"pivot_tables":0},"unopened":[],"bounds":{"document_bytes":16777216,"sheet_cells":100000,"rows_first":2000,"rows_last":500,"rows_between":2000,"halvings":0,"cell_chars":16384,"cell_head_chars":4096},"cells_cut":0,"cells_raw":0,"read":"row_number_cap","date_system":"1900"}

{"sheet":"CAPA","index":0,"n_rows":16,"n_cols":3,"rows_kept":16,"cut":false,"hidden":false,"merged":[[8,2,8,17],[11,2,11,5],[15,2,15,17]]}
[null,"V_2_21_09_2017_17_44"]
[]
[]
[]
[]
[]
[null,null,"BENEFICIÁRIO:"]
[]
[]
[]
[null,null,"NIF:"]
[]
[]
[null,null,"SISTEMA DE INCENTIVOS:"]
[]
[null,null,"INOVAR 2020"]

{"sheet":"Analise mercado","index":1,"n_rows":159,"n_cols":13,"rows_kept":159,"cut":false,"hidden":false,"merged":[[157,4,157,9],[158,4,158,13],[79,3,79,14],[103,3,103,14],[58,12,58,14],[83,3,90,4],[69,12,69,14],[69,3,77,4],[69,7,69,10],[83,12,83,14],[92,12,92,14],[60,3,67,4],[60,7,60,10],[60,12,60,14],[81,7,81,10],[81,12,81,14],[155,4,155,9],[106,7,107,7],[83,7,83,10],[156,4,156,7],[109,9,111,9],[92,3,100,4],[92,7,92,10],[106,9,107,9],[154,3,154,13],[134,3,135,14],[113,3,115,4],[113,7,115,7],[113,9,115,9],[109,3,111,4],[109,7,111,7],[4,2,4,14],[7,2,7,5],[11,2,11,14],[14,2,14,15],[58,7,58,10],[19,3,19,14]]}
[]
[]
[null,null,"BENEFICIÁRIO:"]
[]
[null,null,{"$f":"+CAPA!C9","v":0}]
[]
[null,null,"NIF:"]
[null,null,{"$f":"+CAPA!C12","v":0}]
[]
[null,null,"SISTEMA DE INCENTIVOS:"]
[]
[null,null,{"$f":"+CAPA!C16","v":"INOVAR 2020"}]
[]
[]
[null,null,"ANÁLISE DO MERCADO"]
[]
[null,null,"  "]
[]
[null,null,null,"Análise do Mercado "]
[null,null,null," - Nesta secção pretende-se a identificação da abrangência comercial da empresa e qual o impacto dos seus produtos no mercado, bem como a descrição de como respondem às necessidades dos seus clientes."]
[null,null,null,"Breve Descrição do Mercado"]
[null,null,null,"-","Quem são e onde estão os atuais clientes da empresa e quem serão e onde estarão no horizonte temporal do projeto? "]
[null,null,null,"-","Que necessidades dos clientes satisfazem os produtos da empresa? Que benefícios procura o consumidor? E que necessidades / benefícios pretendem satisfazer no futuro? "]
[null,null,null,"-","Com que tecnologias satisfazem essas necessidades? Vão passar a utilizar outras? Perspetiva-se alterações de tecnologia? Quais?"]
[null,null,null,"-","Através de que canais de distribuição vendem os produtos/serviços? O que pretendem fazer no futuro sobre os canais de distribuição? "]
[null,null,null,"-","Que fatores influenciam a procura (motivações de compra)? Que tipo de consumidor compra os produtos da concorrência? "]
[null,null,null,"-","Qual a segmentação que faz do mercado? Qual parcela do mercado a sua empresa visa atingir? Com base em que critérios é feita essa divisão do mercado potencial? Como é que esses segmentos são quantificados? "]
[null,null,null,"-","Qual a dimensão atual e potencial do mercado? "]
[]
[]
[]
[]
[]
[]
[]
[]
[]
[]
[]
[]
[null,null,null,"Análise da Concorrência "]
[null,null,null," - Esta seção visa dar a noção da dimensão concorrencial da empresa beneficiária, bem como a sua capacidade de adaptação perante os desafios do mercado. "]
[null,null,null," - ","Identificação os seus concorrentes diretos, que têm como alvos os mesmos segmentos de mercado da sua empresa. "]
[null,null,null," - ","Identificação das áreas de competitividade críticas para o negócio em que a empresa se insere."]
[]
[]
[]
[]
[]
[]
[]
[]
[]
[]
[]
[]
[null,null,null,"Análise SWOT"]
[null,null,null," - Aqui deve inserir nos campos respetivos (Fatores Internos e Externos, Pontos Fracos, Pontos Fortes, Oportunidade e Ameaças) todos os elementos resumo que resultam da sua análise SWOT."]
[]
[]
[null,null,null,"FATORES\nINTERNOS",null,null,null,"PONTOS FORTES",null,null,null,null,"PONTOS FRACOS"]
[]
[]
[]
[]
[]
[]
[]
[]
[null,null,null,"FATORES\nEXTERNOS",null,null,null,"OPORTUNIDADES",null,null,null,null,"AMEAÇAS"]
[]
[]
[]
[]
[]
[]
[]
[]
[]
[null,null,null," - Para além da síntese da análise SWOT indicada no quadro anterior, deve ainda desenvolver uma análise qualificada/dinâmica baseada na referida análise SWOT, identificando: Riscos, Avisos, Desafios/Apostas e Restrições."]
[]
[null,null,null,null,null,null,null,"Oportunidades",null,null,null,null,"Ameaças"]
[]
[null,null,null,"Pontos\nFortes",null,null,null,"Apostas",null,null,null,null,"Avisos"]
[]
[]
[]
[]
[]
[]
[]
[]
[null,null,null,"Pontos\nFracos",null,null,null,"Restrições",null,null,null,null,"Riscos"]
[]
[]
[]
[]
[]
[]
[]
[]
[]
[null,null,null,"Qual a direção de crescimento do mercado"]
[null,null,null," - Neste quadro pretende-se ter a identificação da forma como o beneficiário pretende orientar a sua atividade futura nos mercados, selecionando apenas uma das seguintes opções (cujos conceitos subjacentes se encontram explicados na caixa)."]
[null,null,null," - Justifique a sua direção de crescimento no mercado."]
[]
[null,null,null,null,null,null,null,"PRODUTOS\nATUAIS",null,"PRODUTOS\nNOVOS"]
[]
[]
[null,null,null,"MERCADOS\nATUAIS",null,null,null,"Penetração",null,"Extensão \ndo Produto"]
[]
[]
[]
[null,null,null,"MERCADOS\nNOVOS",null,null,null,"Extensão \ndo Mercado",null,"Diversificação"]
[]
[]
[]
[null,null,null," - Tanto no quadro “Qual a duração de crescimentos no mercado” como na justificação posterior o beneficiário deverá ter em consideração os seguintes conceitos: "]
[null,null,null," - ","Penetração - Aumento das quotas de mercado com os produtos atuais e nos mercados atuais; "]
[null,null,null," - ","Extensão do produto - aumento da gama e/ou criação de novos produtos, mantendo os mercados atuais; "]
[null,null,null," - ","Extensão do mercado - entrada em novos mercados (e.g. entrada ou alargamento do mercado de exportação ou cobertura de mais segmentos no mercado nacional), com os mesmos produtos; "]
[null,null,null," - ","Diversificação - lançamento de novos produtos e, em simultâneo, entrada em novos mercados."]
[]
[]
[]
[]
[]
[]
[]
[]
[]
[]
[]
[null,null,null,"Marcas Próprias (preenchimento quando aplicável) "]
[null,null,null," - Pretende-se a identificação das marcas pertencentes à empresa beneficiária, ou a criar, e caso se encontrem registadas, a indicação de se esse registo é nacional ou internacional. Deverá também identificar a dimensão concorrencial da empresa beneficiária com a indicação das suas marcas e das marcas concorrentes na mesma área de negócio do projeto assim como da sua capacidade de diferenciação/reconhecimento."]
[]
[null,null,null," - ","A empresa detém marca própria? Esta marca está registada em Portugal e noutros mercados? Se não tem marca própria que instrumentos de diferenciação/reconhecimento utiliza no mercado face à concorrência? "]
[null,null,null," - "," Identificação das principais marcas concorrentes e a sua perceção sobre a notoriedade da sua marca e a dos seus concorrentes. Qual o posicionamento que perspetiva para o pós projeto? "]
[]
[]
[]
[]
[]
[]
[]
[]
[]
[]
[]
[]
[]
[]
[]
[null,null,null,"Posicionamento na Cadeia de Valor "]
[null,null,null," - Pretende-se que o beneficiário identifique os impactos previstos com o projeto, nomeadamente, ao nível do posicionamento da cadeia de valor, no pré e pós projeto."]
[null,null,null,null," - Posicionamento na cadeira de valor (atual e perspetiva futura)."]
[null,null,null,null," - Capacidade de agregação de valor."]
[null,null,null,null," - Natureza do posicionamento na cadeia de valor completa."]
[null,null,null,null," - Qual é o efeito prático que o projeto provoca nas relações com outras empresa, a montante e a jusante da empresa que apresenta o projeto e de que forma."]

{"sheet":"Inovação produtiva","index":2,"n_rows":109,"n_cols":5,"rows_kept":109,"cut":false,"hidden":false,"merged":[[38,3,38,13],[73,3,73,13],[4,2,4,13],[7,2,7,5],[11,2,11,13],[14,2,14,14],[37,3,37,7],[19,3,19,13],[20,3,20,13],[42,3,42,13],[45,4,45,13],[100,3,100,13],[72,3,72,13],[76,3,76,13],[78,4,78,13],[80,4,80,13],[74,3,74,13],[95,3,95,13],[96,3,96,13],[97,3,97,13],[98,3,98,13],[99,3,99,13],[91,4,91,13],[104,3,104,13],[105,3,105,13],[106,3,106,13],[107,3,107,13],[108,3,108,13]]}
[]
[]
[null,null,"BENEFICIÁRIO:"]
[]
[null,null,{"$f":"+CAPA!C9","v":0}]
[]
[null,null,"NIF:"]
[null,null,{"$f":"+CAPA!C12","v":0}]
[]
[null,null,"SISTEMA DE INCENTIVOS:"]
[]
[null,null,{"$f":"+CAPA!C16","v":"INOVAR 2020"}]
[]
[]
[null,null,"INOVAÇÃO PRODUTIVA"]
[]
[null,null,"  "]
[]
[null,null,null,"Fundamentação do enquadramento do projeto nas tipologias de projeto selecionadas (de acordo com o artigo 7º da Portaria do INOVAR 2020)"]
[null,null,null," - Produção de novos bens e serviços ou melhorias significativas da produção através da valorização económica do conhecimento."]
[null,null,null," - Adoção de novos, ou significativamente melhorados, processos ou métodos de fabrico."]
[null,null,null,"Deve ser apresentada a situação da empresa anterior ao projeto e os efeitos esperados do mesmo em cada uma das áreas de intervenção."]
[]
[]
[]
[]
[]
[]
[]
[]
[]
[]
[]
[]
[]
[]
[]
[null,null,null,"Descrição das atividades de Inovação"]
[null,null,null," - O beneficiário deverá detalhar os investimentos integrados nas diferentes tipologias de projeto  estabelecendo uma correlação entre estes e o seu grau de inovação (para o mercado nacional e internacional)."]
[null,null,null,null," - Inovação do produto/serviços.   "]
[null,null,null,null," - Inovação de processos.   "]
[]
[null,null,null,"Deve ser apresentada a situação da empresa anterior ao projeto no que diz respeito às atividades e inovação. A descrição das atividades de inovação previstas no projeto e o respetivo efeito esperado na empresa."]
[null,null,null,null," - Com a inovação preconizada propõe-se, de forma sustentada, a abertura de um novo mercado/indústria?"]
[null,null,null,null," - A inovação preconizada e definida centra-se ao nível do produto/serviço ou ultrapassa-o para estar ao nível da criação de novas experiências para o mercado ?"]
[null,null,null,null," - A inovação preconizada assenta numa nova aproximação para o mercado, para a região e/ou país ou pode dizer-se que está ao nível de uma inovação de caráter internacional (para o mundo) ?"]
[]
[]
[]
[]
[]
[]
[]
[]
[]
[]
[]
[]
[]
[]
[]
[]
[]
[]
[]
[]
[]
[]
[]
[]
[null,null,null,"CONCEITOS A TER EM ATENÇÃO"]
[]
[null,null,null,"«Grau de novidade», em função da abragência da inovação no mercado: inovação para o mercado nacional e novo para o mercado interncional."]
[null,null,null,"Novo para o mercado nacional: a empresa introduz inovação no seu mercado. O mercado da empresa é definido pelos produtos que oferece, pelo setor que integra, pelos concorrentes da empresa e pela região onde exerce a sua influência. O âmbito geográfico para a inovação de mercado depende da própria visão da empresa sobre o seu mercado."]
[null,null,null,"Novo para o mercado internacional: a empresa introduz inovação com o grau de novidade ao nível internacional (inovação no mercado global). "]
[]
[null,null,null,"«Tipologias de inovação»:"]
[]
[null,null,null,null,"i) «Inovação de produto/serviço», a introdução de um novo ou significativamente melhorado produto ou serviço, incluindo alterações significativas nas suas especificações técnicas, componentes e materiais, software incorporado, facilidade de uso ou outras características funcionais. O termo “produto” abrange tanto bens como serviços; "]
[]
[null,null,null,null,"ii) «Inovação de processo», a implementação de um novo ou significativamente melhorado processo ou método de produção de bens e serviços, de logística e de distribuição."]
[]
[]
[null,null,null,"Não se considera inovação:"]
[]
[null,null,null,null,"i) Pequenas alterações ou melhorias, aumentos de capacidade de produção similares a processos já existentes na empresa;"]
[]
[null,null,null,null,"ii) Investimentos de substituição ou decorrentes do encerramento de um processo produtivo;"]
[]
[null,null,null,null,"iii) Investimentos em processos resultantes de alterações de preços, customização e alterações cíclicas ou sazonais;"]
[]
[null,null,null,null,"iv) Investimentos para a comercialização de novos produtos ou significativamente melhorados e investimentos de inovação de processos associados a alterações estratégicas de gestão ou aquisições e fusões."]
[]
[null,null,null,"Inovação de Produto "]
[]
[null,null,null,"Uma Inovação de Produto é a introdução de um bem ou serviço novo ou significativamente melhorado no que concerne às suas características ou usos previstos. Incluem-se neste tipo de inovação melhoramentos significativos em especificações técnicas, componentes e materiais, software incorporado, facilidade de uso ou outras características funcionais. "]
[null,null,null,"As inovações de produto podem utilizar novos conhecimentos ou tecnologias, ou podem basear-se em novos usos ou combinações de conhecimentos ou tecnologias existentes. O termo “produto” abrange tanto bens como serviços. As inovações de produto incluem a introdução de novos bens e serviços, e melhoramentos significativos nas características funcionais ou de uso dos bens e serviços existentes. "]
[null,null,null,"Melhoramentos significativos para produtos existentes podem ocorrer por meio de mudanças em materiais, componentes e outras características que aprimoram o seu desempenho. A introdução dos travões ABS, dos sistemas de navegação GPS (Global Positioning System), ou outras melhorias em subsistemas de automóveis são exemplos de inovações de produto baseadas em mudanças parciais ou na adição de um subsistema em vários subsistemas técnicos integrados. O uso de tecidos respiráveis em vestuário é um exemplo de uma inovação de produto que utiliza novos materiais, capazes de melhorar o desempenho do produto. "]
[null,null,null,"As inovações de produtos no setor de serviços podem incluir melhoramentos importantes no que diz respeito a como eles são oferecidos (por exemplo, em termos de eficiência ou de rapidez e qualidade), a adição de novas funções ou características em serviços existentes, ou a introdução de serviços inteiramente novos. São exemplos, as melhorias significativas em serviços via internet, tais como um grande aumento na velocidade e na facilidade de uso, ou a introdução de serviços que melhoram o acesso dos clientes. "]
[null,null,null,"A conceção é parte integrante do desenvolvimento e da implementação de inovações de produto. Todavia, mudanças na conceção que não implicam uma mudança significativa nas características funcionais do produto ou nos seus usos previstos não são inovações de produto. Ainda assim, elas podem ser inovações de marketing, como será abaixo referido. "]
[null,null,null,"Atualizações de rotina ou mudanças sazonais não configuram inovações de produto."]
[]
[null,null,null,"Inovação de Processo"]
[]
[null,null,null,"Uma Inovação de Processo é a implementação de um método de produção ou distribuição novo ou significativamente melhorado. Incluem-se neste tipo de inovação as mudanças significativas, as técnicas, de equipamentos e/ou de software. "]
[null,null,null,"As inovações de processo podem também visar reduzir custos de produção ou de distribuição, melhorar a qualidade, ou ainda produzir ou distribuir produtos novos ou significativamente melhorados. "]
[null,null,null,"Os métodos de produção envolvem as técnicas, equipamentos e software utilizado para produzir bens e serviços. São exemplos de novos métodos de produção a introdução de novos equipamentos de automação numa linha de produção e a implementação de design auxiliado por computador para o desenvolvimento de um produto. "]
[null,null,null,"Os métodos de distribuição dizem respeito à logística da empresa e seus equipamentos, software e técnicas para aprovisionamento (matérias primas e produtos acabados) e entrega do produto final. "]
[null,null,null,"As inovações de processo incluem métodos novos ou significativamente melhorados para a criação e o fornecimento de serviços. Elas podem envolver mudanças substanciais nos equipamentos e no software utilizado em empresas orientadas para os serviços ou nos procedimentos e nas técnicas que são utilizadas para os serviços de distribuição."]

{"sheet":"Capacidade","index":3,"n_rows":65,"n_cols":13,"rows_kept":65,"cut":false,"hidden":false,"merged":[[4,2,4,12],[7,2,7,5],[11,2,11,12],[13,2,13,13],[24,3,24,10],[25,3,25,10],[32,3,32,9],[39,3,39,9],[30,3,30,9],[31,3,31,9],[33,3,33,9],[34,3,34,9],[35,3,35,9],[64,3,64,9],[19,3,19,10],[20,3,20,10],[21,3,21,10],[22,3,22,10],[23,3,23,10],[54,3,54,9],[55,3,55,9],[56,3,56,9],[57,3,57,9],[58,3,58,9],[59,3,59,9],[48,3,48,9],[49,3,49,9],[50,3,50,9],[51,3,51,9],[60,3,60,9],[61,3,61,9],[62,3,62,9],[63,3,63,9],[52,3,52,9],[53,3,53,9],[47,3,47,9],[36,3,36,9],[37,3,37,9],[38,3,38,9],[42,3,42,9],[43,3,43,9],[44,3,44,9],[45,3,45,9],[46,3,46,9],[40,3,40,9],[41,3,41,9]],"read":"row_number_cap"}
[]
[]
[null,null,"BENEFICIÁRIO:"]
[]
[null,null,{"$f":"+CAPA!C9","v":0}]
[]
[null,null,"NIF:"]
[null,null,{"$f":"+CAPA!C12","v":0}]
[]
[null,null,"SISTEMA DE INCENTIVOS:"]
[]
[null,null,{"$f":"+CAPA!C16","v":"INOVAR 2020"}]
[]
[null,null,"CAPACIDADE"]
[]
[null,null,"  "]
[]
[null,null,null,"Descrição Física do Empreendimento"]
[null,null,null,"Áreas"]
[null,null,null,"Designação",null,null,null,null,null,null,null,"Unidade","Área"]
[null,null,null,"Área do Terreno existente",null,null,null,null,null,null,null,"m2"]
[null,null,null,"Área do Terreno a adquirir",null,null,null,null,null,null,null,"m2"]
[null,null,null,"Área de Construção existente",null,null,null,null,null,null,null,"m2"]
[null,null,null,"Área de Construção a amplicar",null,null,null,null,null,null,null,"m2"]
[null,null,null,"Área Total de Construção",null,null,null,null,null,null,null,"m2"]
[null,null,null,"Área de Logradouro",null,null,null,null,null,null,null,"m2"]
[]
[]
[]
[null,null,null,"Capacidade"]
[null,null,null,"Componentes",null,null,null,null,null,null,"Unidade","Capacidade Pré-Projeto","Capacidade Pós-Projeto"]
[null,null,null,"Quartos Simples",null,null,null,null,null,null,"n.º"]
[null,null,null,"Quartos Dúplos",null,null,null,null,null,null,"n.º"]
[null,null,null,"Quartos Triplos",null,null,null,null,null,null,"n.º"]
[null,null,null,"Suites",null,null,null,null,null,null,"n.º"]
[null,null,null,"Apartamentos T0",null,null,null,null,null,null,"n.º"]
[null,null,null,"Apartamentos T1",null,null,null,null,null,null,"n.º"]
[null,null,null,"Apartamentos T2",null,null,null,null,null,null,"n.º"]
[null,null,null,"Outros Apartamentos",null,null,null,null,null,null,"n.º"]
[null,null,null,"Moradias",null,null,null,null,null,null,"n.º"]
[null,null,null,"Bungalows",null,null,null,null,null,null,"n.º lugares"]
[null,null,null,"Bares",null,null,null,null,null,null,"n.º lugares"]
[null,null,null,"Esplanadas",null,null,null,null,null,null,"n.º lugares"]
[null,null,null,"Snack-Bares",null,null,null,null,null,null,"n.º lugares"]
[null,null,null,"Restaurantes",null,null,null,null,null,null,"n.º lugares"]
[null,null,null,"Discotecas",null,null,null,null,null,null,"n.º lugares"]
[null,null,null,"Salas Polivalentes",null,null,null,null,null,null,"n.º lugares"]
[null,null,null,"Salas de Congressos",null,null,null,null,null,null,"n.º lugares"]
[null,null,null,"Salas de Reuniões",null,null,null,null,null,null,"n.º lugares"]
[null,null,null,"Campos de Golfe",null,null,null,null,null,null,"n.º lugares"]
[null,null,null,"Picadeiros",null,null,null,null,null,null,"n.º lugares"]
[null,null,null,"Mini-Golfe",null,null,null,null,null,null,"n.º lugares"]
[null,null,null,"Campos de Ténis",null,null,null,null,null,null,"n.º lugares"]
[null,null,null,"Piscinas",null,null,null,null,null,null,"n.º"]
[null,null,null,"Ginásios",null,null,null,null,null,null,"n.º"]
[null,null,null,"Sauna",null,null,null,null,null,null,"n.º"]
[null,null,null,"Banho Turco",null,null,null,null,null,null,"n.º"]
[null,null,null,"Jacuzzi",null,null,null,null,null,null,"n.º"]
[null,null,null,"Squash",null,null,null,null,null,null,"n.º"]
[null,null,null,"Gabinetes de Tratamento",null,null,null,null,null,null,"n.º"]
[null,null,null,"Salas de Internet",null,null,null,null,null,null,"n.º"]
[null,null,null,"Campos de Jogos",null,null,null,null,null,null,"n.º"]
[null,null,null,"Campos de Futebol",null,null,null,null,null,null,"n.º"]
[null,null,null,"Parques Infantis",null,null,null,null,null,null,"n.º"]
[null,null,null,"Lojas",null,null,null,null,null,null,"n.º"]

{"sheet":"Folha2","index":4,"n_rows":131,"n_cols":10,"rows_kept":131,"cut":false,"hidden":true,"merged":[]}
[]
[]
[null,null,"Sistemas de Incentivos",null,"Código","Grupo Empreendimento","Código",null,"Código","Regime de construção"]
[null,null,"----- Escolha -----",null,-1,"----- Escolha -----",-1,null,-1,"----- Escolha -----"]
[null,null,"INOVAR 2020",null,1,"Estabelecimentos Hoteleiros",1,null,1,"Administração Direta"]
[null,null,"EMPREENDER 2020",null,2,"Estabelecimentos de Turismo no Espaço Rural",2,null,2,"Administração Semi-Direta"]
[null,null,"INTERNACIONALIZAR 2020",null,3,"Estabelecimentos de Turismo de Natureza",3,null,3,"Empreitada"]
[null,null,"PROCiência 2020",null,4,"Agências de Viagens e Turismo",4]
[null,null,null,null,5,"Serviços de Aluguer Sem Condutor",5]
[null,null,null,null,6,"Conjuntos Turísticos",6]
[null,null,null,null,7,"Estabelecimentos de Restauração e Bebidas",7]
[null,null,null,null,8,"Meios Complementares de Alojamento",8]
[null,null,null,null,9,"Parques de Campismo Públicos",9]
[null,null,null,null,10,"Animação Turística",10]
[null,null,null,null,11,"Apoios de Praia",11]
[]
[]
[null,null,null,null,"Código","Empreendimento","Grupo"]
[null,null,null,null,-1,"--- Escolha ---",-1]
[null,null,null,null,101,"Hotel 5**",1]
[null,null,null,null,102,"Hotel 4**",1]
[null,null,null,null,103,"Hotel 3**",1]
[null,null,null,null,104,"Hotel 2**",1]
[null,null,null,null,105,"Hotel 1*",1]
[null,null,null,null,106,"Hotel Residencial 5**",1]
[null,null,null,null,107,"Hotel Residencial 4**",1]
[null,null,null,null,108,"Hotel Residencial 3**",1]
[null,null,null,null,109,"Hotel Residencial 2**",1]
[null,null,null,null,110,"Hotel Residencial 1*",1]
[null,null,null,null,111,"Hotel-Apartamento 5**",1]
[null,null,null,null,112,"Hotel-Apartamento 4**",1]
[null,null,null,null,113,"Hotel-Apartamento 3**",1]
[null,null,null,null,114,"Hotel-Apartamento 2**",1]
[null,null,null,null,115,"Pensão 1ª Categoria",1]
[null,null,null,null,116,"Pensão 2ª Categoria",1]
[null,null,null,null,117,"Pensão 3ª Categoria",1]
[null,null,null,null,118,"Albergaria",1]
[null,null,null,null,119,"Pensão Residencial 1ª Categoria",1]
[null,null,null,null,120,"Pensão Residencial 2ª Categoria",1]
[null,null,null,null,121,"Pensão Residencial 3ª Categoria",1]
[null,null,null,null,122,"Albergaria Residencial",1]
[null,null,null,null,123,"Estalagem 5 **",1]
[null,null,null,null,124,"Estalagem 4 **",1]
[null,null,null,null,125,"Motel 3**",1]
[null,null,null,null,126,"Motel 2**",1]
[null,null,null,null,127,"Pousada",1]
[null,null,null,null,128,"Hospedaria ou Casa de Hóspedes",1]
[null,null,null,null,201,"Turismo de Habitação",2]
[null,null,null,null,202,"Turismo Rural",2]
[null,null,null,null,203,"Agroturismo",2]
[null,null,null,null,204,"Turismo de Aldeia",2]
[null,null,null,null,205,"Casa de Campo",2]
[null,null,null,null,206,"Hotel Rural",2]
[null,null,null,null,207,"Parque de Campismo Rural",2]
[null,null,null,null,301,"Casa de Natureza-Abrigo",3]
[null,null,null,null,302,"Casa de Natureza-Centros de Acolhimento",3]
[null,null,null,null,303,"Casa de Natureza-Retiro",3]
[null,null,null,null,304,"Animação (Tur. Natureza)",3]
[null,null,null,null,305,"Interpretação Ambiental",3]
[null,null,null,null,306,"Desporto Natureza",3]
[null,null,null,null,307,"Turismo de Habitação",3]
[null,null,null,null,308,"Turismo Rural",3]
[null,null,null,null,309,"Agroturismo",3]
[null,null,null,null,310,"Turismo de Aldeia",3]
[null,null,null,null,311,"Casa de Campo",3]
[null,null,null,null,312,"Hotel Rural",3]
[null,null,null,null,313,"Parque de Campismo Rural",3]
[null,null,null,null,400,"Agência de Viagens e Turismo",4]
[null,null,null,null,500,"Serviço de Aluguer S/ Condutor",5]
[null,null,null,null,600,"Conjunto Turístico",6]
[null,null,null,null,701,"Clube Noturno",7]
[null,null,null,null,702,"Boite",7]
[null,null,null,null,703,"Night Club",7]
[null,null,null,null,704,"Cabaret",7]
[null,null,null,null,705,"Dancing",7]
[null,null,null,null,706,"Discoteca",7]
[null,null,null,null,707,"Restaurante de Luxo",7]
[null,null,null,null,708,"Restaurante Típico",7]
[null,null,null,null,709,"Restaurante de Interesse para o Turismo",7]
[null,null,null,null,710,"Marisqueira",7]
[null,null,null,null,711,"Casa de Pasto",7]
[null,null,null,null,712,"Pizzeria",7]
[null,null,null,null,713,"Snack-Bar",7]
[null,null,null,null,714,"Self-Service",7]
[null,null,null,null,715,"Eat-Driver",7]
[null,null,null,null,716,"Take-Away",7]
[null,null,null,null,717,"Fast-Food",7]
[null,null,null,null,718,"Bar",7]
[null,null,null,null,719,"Cervejaria",7]
[null,null,null,null,720,"Café",7]
[null,null,null,null,721,"Pastelaria",7]
[null,null,null,null,722,"Confeitaria",7]
[null,null,null,null,723,"Boutique de Pão Quente",7]
[null,null,null,null,724,"Cafetaria",7]
[null,null,null,null,725,"Casa de Chá",7]
[null,null,null,null,726,"Gelataria",7]
[null,null,null,null,727,"Pub",7]
[null,null,null,null,728,"Taberna",7]
[null,null,null,null,801,"Apartamento Turístico 5**",8]
[null,null,null,null,802,"Apartamento Turístico 4**",8]
[null,null,null,null,803,"Apartamento Turístico 3**",8]
[null,null,null,null,804,"Apartamento Turístico 2**",8]
[null,null,null,null,805,"Aldeamento Turístico 5**",8]
[null,null,null,null,806,"Aldeamento Turístico 4**",8]
[null,null,null,null,807,"Aldeamento Turístico 3**",8]
[null,null,null,null,808,"Moradia Turística 1ª Categoria",8]
[null,null,null,null,809,"Moradia Turística 2ª Categoria",8]
[null,null,null,null,901,"Parque de Campismo Público 4**",9]
[null,null,null,null,902,"Parque de Campismo Público 3**",9]
[null,null,null,null,903,"Parque de Campismo Público 2**",9]
[null,null,null,null,904,"Parque de Campismo Público 1*",9]
[null,null,null,null,1001,"Marina",10]
[null,null,null,null,1002,"Porto de Recreio",10]
[null,null,null,null,1003,"Doca de Recreio",10]
[null,null,null,null,1004,"Balneário Termal e Terapeutico",10]
[null,null,null,null,1005,"Parque Temático",10]
[null,null,null,null,1006,"Campos de Golfe",10]
[null,null,null,null,1007,"Embarcações",10]
[null,null,null,null,1009,"Outros Equip. e Meios de Animação Turística",10]
[null,null,null,null,1010,"Salas Polivalentes",10]
[null,null,null,null,1011,"Equitação Desportiva e de Lazer",10]
[null,null,null,null,1012,"Pistas de Remo e Canoagem",10]
[null,null,null,null,1013,"Atividades Náuticas",10]
[null,null,null,null,1014,"Espeleologia, Alpinismo, Montanhismo, Ativ. Afins",10]
[null,null,null,null,1015,"Paraquedismo, Balonismo e Parapente",10]
[null,null,null,null,1016,"Passeios em veículos de todo o terreno",10]
[null,null,null,null,1017,"Instalações para Salas de Congressos e Reuniões",10]
[null,null,null,null,1018,"Autódromo / Kartódromo",10]
[null,null,null,null,1019,"Zona de Caça",10]
[null,null,null,null,1020,"Centro de Wellness",10]
[null,null,null,null,1101,"Apoio de Praia",11]

{"sheet":"Inv. Inicial","index":5,"n_rows":223,"n_cols":11,"rows_kept":223,"cut":false,"hidden":false,"merged":[[221,4,221,8],[211,4,211,8],[222,4,227,10],[212,4,219,10],[205,4,209,10],[200,4,203,10],[111,3,111,10],[110,3,110,10],[196,4,197,10],[86,4,86,10],[151,3,151,10],[112,3,112,8],[119,3,119,8],[127,4,127,10],[118,4,118,9],[87,3,87,4],[11,2,11,11],[4,2,4,10],[7,2,7,4],[14,2,14,11],[18,3,18,10],[19,8,19,10],[45,3,45,10],[76,4,76,8],[79,9,79,11],[82,9,82,11],[80,9,80,11],[81,9,81,11]]}
[]
[]
[null,null,"BENEFICIÁRIO:"]
[]
[null,null,{"$f":"+CAPA!C9","v":0}]
[]
[null,null,"NIF:"]
[null,null,{"$f":"+CAPA!C12","v":0}]
[]
[null,null,"SISTEMA DE INCENTIVOS:"]
[]
[null,null,{"$f":"+CAPA!C16","v":"INOVAR 2020"}]
[]
[]
[null,null,"INVESTIMENTO INICIAL (de entre as alíneas a), b), c) e d) deverá escolher apenas uma tipologia e proceder à sua fundamentação)"]
[]
[null,null,"  "]
[]
[null,null,null,"Consideram-se enquadráveis os investimentos de natureza inovadora que se traduzam na produção de bens e serviços transacionáveis ou internacionalizáveis e com elevado nível de incorporação nacional e/ou internacional, que correspondam a um investimento inicial, conforme definido no número 49 do artigo 2.º do Regulamento (UE) n.º 651/2014, de 16 de junho, relacionados com:"]
[null,null,null,null,null,null,null,null,"prencher com X, apenas uma tipologia"]
[null,null,null,null," a)  A criação de um novo estabelecimento."]
[]
[null,null,null,"Fundamentação "]
[null,null,null," - Identificar o novo estabelecimento e descrever os objetivos dessa criação  a inovação inerente ao mesmo."]
[]
[]
[]
[]
[]
[]
[]
[]
[]
[]
[]
[]
[]
[]
[]
[]
[]
[]
[]
[null,null,null,null," b) O aumento da capacidade de um estabelecimento já existente."]
[null,null,null,"Capacidade de produção instalada - aplicável apenas à tipologia “Aumento da Capacidade de um estabelecimento já existente” "]
[null,null,null," - Identificar, quando aplicável, a capacidade de produção instalada nas situações pré projeto e no encerramento financeiro do projeto, utilizando a unidade de medida adequada à atividade do beneficiário (Exemplos: Toneladas/Litros/nº de Produtos)."]
[null,null,null,"Se o quadro não for preenchido será utilizado o Valor Bruto da Produção (VBP) para aferir o aumento da capacidade de produção induzido pelo projeto."]
[]
[null,null,null,null,"Capacidade de produção instalada * (se aplicável)",null,null,"Capacidade de produção instalada apurada pelo VBP"]
[null,null,null,null,"Ano pré-Projeto",null,null,"Ano pré-Projeto"]
[null,null,null,null,"Ano encerramento financeiro",null,null,"Ano encerramento financeiro"]
[null,null,null,null,"Unidade",null,null,"Variação",{"$f":"+(I51-I50)/I50","v":{"$error":"#DIV/0!"}}]
[null,null,null,null,"Variação",{"$f":"+(F51-F50)/F50","v":{"$error":"#DIV/0!"}}]
[null,null,null,null,"* o aumento da capacidade instalada deve corresponder no mínimo a 15% da capacidade instalada em relação ao ano pré-projeto;"]
[]
[null,null,null,"Fundamentação "]
[null,null,null," - Descrever a expansão em causa."]
[null,null,null," - Descrever se essa expansão cumpre com o critério de Inovação e como."]
[]
[]
[]
[]
[]
[]
[]
[]
[]
[]
[]
[]
[]
[]
[]
[]
[]
[]
[null,null,null,null,"c) A diversificação da produção de um estabelecimento para produtos não produzidos anteriormente no estabelecimento."]
[null,null,null," - Identificar  o valor contabilistico dos ativos que são reutilizados no projeto, tal como registado no exercicio fiscal anterior à data da candidatura."]
[]
[null,null,null,null,"Rubrica","Valor do ativo liquido (pré projeto)","Taxa de imputação - Peso relativo ao volume de vendas do novo produto","Valor do ativo reutilizado","Ano Pós Projeto","Calculo da Taxa imputação"]
[null,null,null,null,"Edificios/construções",null,{"$f":"+J83","v":{"$error":"#DIV/0!"}},{"$f":"+G81*F81","v":{"$error":"#DIV/0!"}},"Volume de vendas do novo produto (a)"]
[null,null,null,null,"Máquinas/equipamentos",null,{"$f":"+J83","v":{"$error":"#DIV/0!"}},{"$f":"+G82*F82","v":{"$error":"#DIV/0!"}},"Volume de vendas Total (b)"]
[null,null,null,null,"transportes",null,{"$f":"+J83","v":{"$error":"#DIV/0!"}},{"$error":"#DIV/0!"},"Taxa (a) / (b)",{"$f":"+J81/J82","v":{"$error":"#DIV/0!"}}]
[null,null,null,null,"outros",null,{"$f":"+J83","v":{"$error":"#DIV/0!"}},{"$error":"#DIV/0!"}]
[null,null,null,null,"intangíveis",null,{"$f":"+J83","v":{"$error":"#DIV/0!"}},{"$error":"#DIV/0!"}]
[null,null,null,null,"Total",{"$f":"+F81+F82+F83+F84+F85","v":0},null,{"$f":"+H81+H82+H83+H84+H85","v":{"$error":"#DIV/0!"}}]
[null,null,null,null,"* Deverá ser entregue um mapa indicando os ativos tangíveis e intangíveis detalhados por rubrica (líquidos de amortizações e de depreciações) relativos ao ano anterior à data da candidatura e reutilizados no projeto, devidamente validado pelo TOC ou ROC, consoante exigência legal."]
[null,null,null,"Fundamentação "]
[null,null,null," - Descrever a diversificação em causa."]
[null,null,null," - Descrever se essa diversificação cumpre com o critério de Inovação e como."]
[null,null,null," - Justificar o critério de reutilização utilizado."]
[]
[]
[]
[]
[]
[]
[]
[]
[]
[]
[]
[]
[]
[]
[]
[]
[]
[]
[null,null,null,null,"d) A alteração fundamental do processo global de produção de um estabelecimento existente."]
[null,null,null,"Amortização e depreciação dos ativos associados à atividade a modernizar no decurso dos três exercícios fiscais precedentes "]
[null,null,null," - Identificar as amortizações e depreciações de todos os ativos tangíveis e intangíveis objeto de exploração económica no estabelecimento em causa e registados no balanço correspondente aos três anos pré-projeto, sendo excluídos os ativos que serão objeto de abate, alienação ou de relocalização para outro estabelecimento da empresa, no âmbito do projeto em causa."]
[]
[]
[null,null,null,null,null,"Amortizações e depreciações ano n-3","Amortizações e depreciações ano n-2","Amortizações e depreciações ano n-1","Total"]
[null,null,null,null,"Ativos tangíveis",null,null,null,{"$f":"+H116+G116+F116","v":0}]
[null,null,null,null,"Ativos intangíveis",null,null,null,{"$f":"+H117+G117+F117","v":0}]
[null,null,null,null,"Total",{"$f":"+F116+F117","v":0},{"$f":"+G116+G117","v":0},{"$f":"+H116+H117","v":0},{"$f":"+H118+G118+F118","v":0}]
[null,null,null,null,"* deverá ser entregue o Mapa de Amortizações (dos três anos anteriores à data da candidatura), devidamente validado pelo TOC ou ROC, consoante exigência legal."]
[null,null,null," -Excecionalmente, se optar pela utilização da taxa de imputação deverá preencher o quadro seguinte, justificando os valores utilizados:"]
[null,null,null,null,"Rubrica","Amortizações e depreciações ano n-3","Amortizações e depreciações ano n-2","Amortizações e depreciações ano n-1","Total das amortizações","Taxa de imputação","Valor amortizações do ativo imputado"]
[null,null,null,null,"Edificios/construções",null,null,null,{"$f":"+F122+G122+H122","v":0},null,{"$f":"+J122*I122","v":0}]
[null,null,null,null,"Máquinas/equipamentos",null,null,null,{"$f":"+F123+G123+H123","v":0},null,{"$f":"+J123*I123","v":0}]
[null,null,null,null,"transportes",null,null,null,0,null,0]
[null,null,null,null,"outros",null,null,null,0,null,0]
[null,null,null,null,"intangíveis",null,null,null,0,null,0]
[null,null,null,null,"Total",{"$f":"+F122+F123+F124+F125+F126","v":0},{"$f":"+G122+G123+G124+G125+G126","v":0},{"$f":"+H122+H123+H124+H125+H126","v":0},{"$f":"+I122+I123+I124+I125+I126","v":0},null,{"$f":"+K122+K123+K124+K125+K126","v":0}]
[null,null,null,null,"* deverá ser entregue o Mapa de Amortizações (dos três anos anteriores à data da candidatura), devidamente validado pelo TOC ou ROC, consoante exigência legal."]
[null,null,null,"Fundamentação "]
[null,null,null," - Descrever a alteração em causa."]
[null,null,null," - Descrever se essa alteração cumpre com o critério de Inovação e como."]
[null,null,null," - Justificar o critério de reutilização utilizado, para as situações excepcionais."]
[]
[]
[]
[]
[]
[]
[]
[]
[]
[]
[]
[]
[]
[]
[]
[]
[]
[]
[null,null,null,"Construção e Materiais Circulantes: "]
[null,null,null," - O beneficiário deverá, neste campo fundamentar, quando aplicável, as despesas a efetuar com a construção de edifícios, remodelação ou outras construções (ponto iv) da alínea a) do nº 1 do artigo 14º do Reg. INOVAR 2020) salientando os seus principais aspetos assim como com a aquisição de material circulante no âmbito de projeto do setor do Turismo (ponto v da alínea a) do nº 1 do artigo 14.º do Reg. INOVAR 2020)."]
[]
[null,null,null,"Fundamentação "]
[]
[]
[]
[]
[]
[]
[]
[]
[]
[]
[]
[]
[]
[]
[]
[null,null,null,"Justificar do Efeito de Incentivo para Não PME."]
[null,null,null,"     Demonstrar que o incentivo induz um aumento:"]
[null,null,null,null,"        - aumento significativo da dimensão do projecto/actividade."]
[null,null,null,null,"        - aumento significativo do âmbito do projecto/actividade."]
[null,null,null,null,"        - aumento significativo do montante total dispendido pelo Beneficiário no projecto/actividade."]
[null,null,null,null,"        - aumento significativo da rapidez da conclusão do projecto/actividade."]
[null,null,null,null,"        - realização do projeto na região em causa."]
[null,null,null,"Fundamentação"]
[]
[]
[]
[]
[]
[]
[]
[]
[]
[]
[]
[]
[]
[]
[]
[]
[null,null,null,"CONCEITOS A TER EM ATENÇÃO"]
[]
[null,null,null,null,"Investimento inicial"]
[null,null,null,null,"Corresponde a um investimento em ativos corpóreos e incorpóreos relacionados com a criação de um novo estabelecimento, aumento da cpacidade de um estabelecimento existente, diversificação da produção de um estabelecimento para produtos não produzidos anteriormente no estabelecimento ou mudança fundamental do processo de produção global de um estbelecimento existente."]
[]
[]
[null,null,null,null,"Criação de um novo estabelecimento:"]
[null,null,null,null,"Trata-se da criação de uma nova empresa ou de uma nova unidade económica noutro local. Neste caso poderemos estar perante uma inovação de produto/serviço ou de processo. Tem-se por referência a definição “Estabelecimento” usada pelo INE e na IES, em que este corresponde a uma empresa ou parte (fábrica, oficina, loja, entreposto, empreendimento, etc.) situada num local topograficamente identificado. Nesse local ou a partir dele exercem-se atividades económicas para as quais uma ou várias pessoas trabalham, por conta de uma mesma empresa."]
[]
[]
[]
[null,null,null,null,"Aumento da capacidade de um estabelecimento já existente:"]
[null,null,null,null,"Trata-se de um projeto de investimento que tenha por finalidade aumentar a capacidade de produção do estabelecimento já existente. Nesta situação a empresa vai aumentar a sua capacidade produtiva de bens e /ou serviços. \nIdentificar a capacidade de produção instalada nas situações pré e pós projeto, utilizando a unidade de medida adequada à atividade do beneficiário (Exemplos: Toneladas/Litros/nº de Produtos). Se o projeto for desta tipologia e este quadro não for preenchido, será utilizado o Valor Bruto da Produção (VBP) para aferir o aumento da capacidade de produção induzido pelo projeto.                                                                                                                                                                                                                                                                                                         O aumento de capacidade deve corresponder no mínimo a 15% da capacidade instalada em relação ao ano pré projeto. Nesta tipologia a empresa deve aumentar a sua capacidade produtiva de bens e/ou serviços já produzidos nesse estabelecimento. Para demonstrar o cumprimento do aumento mínimo de 15% é admitido o aumento em termos de Valor Bruto da Produção (VBP) conforme já referido anteriormente."]
[]
[]
[]
[]
[]
[null,null,null,null,"Diversificação da produção de um estabelecimento para produtos não produzido anteriormente no estabelecimento:"]
[null,null,null,null,"Caracteriza-se pela situação em que um estabelecimento passa a produzir novos produtos/serviços. Está-se, portanto, no âmbito de uma inovação de produto/serviço. A diversificação da produção considera produtos não produzidos anteriormente no estabelecimento, sendo que os custos elegíveis devem exceder em, pelo menos, 200% o valor contabilístico dos ativos que são reutilizados, tal como registado no exercício fiscal precedente ao início dos trabalhos.  O valor contabilistico dos ativos deve ser aferido tendo por base o valor contabilistico (liquido de amortizações e depreciações) dos ativos tangíveis e intangíveis afetos ao estabelecimento em causa e registados no balanço correspondente ao ano pré-projeto, devendo, assim, o valor do investimento elegivel do projeto ser superior a 200% desse valor contabilistico. O exercicio fiscal que precede o inicio dos trabalhos, considera-se o ano pré-projeto, ou seja o ano  anterior ao da apresentação da candidatura. Assim, a despesa elegível do projeto deve representar no mínimo o valor correspondente a 3 vezes o valor contabilístico dos ativos reutilizados. Os ativos reutilizados no projeto de diversificação (Edifícios, máquinas, equipamentos e outros ativos fixos tangíveis e intangíveis) devem ser identificados pela empresa na candidatura, sendo admitida a utilização de um método pro-rata para o seu apuramento, com base no peso relativo do volume de vendas dos novos produtos. \nOs ativos a considerar são os que, pertencendo ao balanço da empresa, são objeto de exploração económica no estabelecimento em causa. No caso dos ativos intangíveis a empresa deverá possuir um critério contabilisticamente aceite para afetação dos mesmos aos seus estabelecimentos, permitindo identificar o valor correspondente ao estabelecimento em causa. Caso a empresa possua um único estabelecimento onde desenvolve a sua atividade, serão considerados todos os ativos tangíveis e intangíveis registados no seu Balanço. Em qualquer dos casos, poderão ser excluídos os ativos que serão objeto de abate, alienação ou de relocalização para outro estabelecimento da empresa, no âmbito do projeto em causa.\n"]
[]
[]
[]
[]
[]
[]
[]
[]
[null,null,null,null,"Alteração fundamental do processo global de produção de um estabelecimento existente:"]
[null,null,null,null,"Caracteriza-se pela situação em que um estabelecimento existente sofre uma alteração fundamental do processo global de produção. Está-se, portanto, no âmbito de uma inovação de processo.\nNesta alteração fundamental não se está na presença de novas produções, bens ou serviços, (uma vez que a tipologia corresponde a uma alteração fundamental de processo global), sendo que os custos elegíveis devem exceder a amortização e depreciação dos ativos associados ao processo/atividade a modernizar no decurso dos três exercícios fiscais precedentes à data da candidatura. As amortizações e depreciações a considerar para este efeito dizem respeito a todos os ativos tangiveis e intangiveis associados ao processo /atividade a modernizar, registados no balanço da empresa correspondente ao ano pré-projeto e ao estabelecimento em causa e relacionados com o produto/serviço sobre os quais incide a alteração fundamental do processo global de produção. São excluidos os ativos que serão objeto de abate, alienação ou de relocalização para outro estabelecimento da empresa, no âmbito do projeto em causa. Para demonstrar o cumprimento deste critério de elegibilidade deve ser justificado que o investimento elegivel do projeto é superior à soma das amortizações e depreciações dos ativos associados ao processo /atividade a modernizar no decurso dos três exercícios fiscais precendentes, ou seja, tendo por base os valores apresentados nas demonstrações financeiras correspondentes ao ano pré-projeto e aos dois anos anteriores a esse.                                                                                                  Num cenário em que a alteração fundamental de processo possa não abranger a produção de todos os produtos / serviços do estabelecimento, é admitida, excecionalmente, a utilização de um método pro-rata para o seu apuramento, desde que devidamente fundamentada e tecnicamante sustentada pela empresa e aceite pela IDE, IP-RAM."]

{"sheet":"Postos Trabalho","index":6,"n_rows":69,"n_cols":29,"rows_kept":69,"cut":false,"hidden":false,"merged":[[4,2,4,17],[7,2,7,3],[11,2,11,17],[20,3,21,3],[20,4,20,5],[20,6,20,7],[20,8,20,9],[20,10,20,11],[20,12,20,13],[20,26,20,27],[20,22,20,23],[20,24,20,25],[26,3,27,4],[26,5,26,6],[26,8,26,9],[26,10,26,11],[26,14,27,15],[26,16,26,17],[20,14,20,15],[20,16,20,17],[20,18,20,19],[20,20,20,21],[28,3,28,4],[28,14,28,15],[29,3,29,4],[29,14,29,15],[30,3,30,4],[30,5,30,6],[30,14,30,15],[39,3,39,4],[39,10,39,11],[40,3,40,4],[62,3,63,25],[30,16,30,17],[31,3,32,4],[31,5,32,6],[31,14,32,15],[31,16,32,17],[37,3,38,4],[37,5,37,6],[37,10,38,11],[37,12,37,13]]}
[]
[]
[null,null,"BENEFICIÁRIO:"]
[]
[null,null,{"$f":"+CAPA!C9","v":0}]
[]
[null,null,"NIF:"]
[null,null,{"$f":"+CAPA!C12","v":0}]
[]
[null,null,"SISTEMA DE INCENTIVOS:"]
[]
[null,null,{"$f":"+CAPA!C16","v":"INOVAR 2020"}]
[]
[]
[null,null,"POSTOS DE TRABALHO"]
[]
[null,null,"  "]
[]
[null,null,null,"Postos de trabalho existentes no ano anterior à data da candidatura"]
[]
[null,null,null,"Postos de trabalho","Jan/n-1",null,"Fev/n-1",null,"Mar/n-1",null,"abr/n-1",null,"Maio/n-1",null,"Jun/n-1",null,"Jul/n-1",null,"Ago/n-1",null,"Set/n-1",null,"Out/n-1",null,"Nov/n-1",null,"Dez/n-1"]
[null,null,null,null,"H","M","H","M","H","M","H","M","H","M","H","M","H","M","H","M","H","M","H","M","H","M","H","M"]
[null,null,null,"Não qualificado",null,null,null,null,null,null,null,null,null,null,null,null,null,null,null,null,null,null,null,null,null,null,null,null,"(inserir)"]
[null,null,null,"Qualificado*",null,null,null,null,null,null,null,null,null,null,null,null,null,null,null,null,null,null,null,null,null,null,null,null,"(inserir)"]
[null,null,null,"* Nivel de qualificação igual ou superior ao Nível VI"]
[]
[null,null,null,"Postos de trabalho",null,"Total"]
[null,null,null,null,null,"H","M"]
[null,null,null,"Não qualificado",null,{"$f":"E23+G23+I23+K23+M23+O23+Q23+S23+U23+W23+Y23+AA23","v":0},{"$f":"F23+H23+J23+L23+N23+P23+R23+T23+V23+X23+Z23+AB23","v":0}]
[null,null,null,"Qualificado*",null,{"$f":"E24+G24+I24+K24+M24+O24+Q24+S24+U24+W24+Y24+AA24","v":0},{"$f":"F24+H24+J24+L24+N24+P24+R24+T24+V24+X24+Z24+AB24","v":0}]
[null,null,null,"Nº meses",null,null,null,"(inserir)"]
[null,null,null,"Média Postos de trabalho",null,{"$f":"(F29+G29+F30+G30)/F31","v":{"$error":"#DIV/0!"}}]
[]
[]
[]
[null,null,null,"Postos de trabalho a criar com o projeto"]
[]
[null,null,null,"Postos de trabalho",null,"Total",null,null,null,null,"Postos de trabalho",null,"Total"]
[null,null,null,null,null,"H","M",null,null,null,null,null,"H","M"]
[null,null,null,"Não qualificado",null,null,null,"(inserir)",null,null,"Jovem",null,null,null,"(inserir)"]
[null,null,null,"Qualificado*",null,null,null,"(inserir)"]
[]
[]
[null,null,null,"Fundamentação "]
[null,null,null," - Se os meios humanos são adequados ao desenvolvimento do projeto."]
[null,null,null," - Qual a formação dos postos de trabalho e se a mesma é adequada ao desenvolvimento do projeto."]
[]
[]
[]
[]
[]
[]
[]
[]
[]
[]
[]
[]
[]
[]
[]
[null,null,null,"Nota:"]
[null,null,null,"«Criação líquida de postos de trabalho», o aumento líquido do número de trabalhadores diretamente empregados na empresa, calculado pela diferença entre o número de postos de trabalho existentes no mês anterior à data de apresentação do pedido de pagamento final e a média mensal durante um determinado período de tempo nos meses pré- projeto, com o limite máximo de 12 meses."]
[]
[]
[null,null,null,"Nos termos da Portaria n.º 782/2009 de 23 de julho, os níveis de qualificação de emprego a considerar são:"]
[null,null,null,"•  Nível 6 - Licenciatura\n"]
[null,null,null,"• Nível 7 - Mestrado"]
[null,null,null,"• Nível 8 - Doutoramento"]

{"sheet":"VENDAS EXTERIOR","index":7,"n_rows":104,"n_cols":12,"rows_kept":104,"cut":false,"hidden":false,"merged":[[4,2,4,11],[7,2,7,3],[11,2,11,11],[14,2,14,12],[20,3,21,3],[20,4,21,4],[20,5,21,5],[20,6,20,7],[20,8,20,9],[103,3,104,10],[59,3,61,3],[59,4,61,4],[59,5,59,7],[59,8,59,10],[60,5,61,5],[60,6,60,7],[60,8,61,8],[60,9,60,10],[94,3,94,10],[96,3,96,10],[98,3,98,10],[99,3,99,10],[101,3,101,10]]}
[]
[]
[null,null,"BENEFICIÁRIO:"]
[]
[null,null,{"$f":"Financiamento!C5","v":0}]
[]
[null,null,"NIF:"]
[null,null,{"$f":"Financiamento!C8","v":0}]
[]
[null,null,"SISTEMA DE INCENTIVOS:"]
[]
[null,null,{"$f":"Financiamento!C12","v":"INOVAR 2020"}]
[]
[]
[null,null,"ATIVIDADE ECONÓMICA / VENDAS AO EXTERIOR"]
[]
[null,null,"  "]
[]
[null,null,null,"Atividade económica por mercado"]
[]
[null,null,null,"Tipo","Bem/Serviço","Mercado (país)","Ano Pré Proj",null,"Ano Fim Proj +1"]
[null,null,null,null,null,null,"Quantidade","Valor","Quantidade","Valor"]
[null,null,null,null,null,null,null,null,null,null,null,"Compras"]
[null,null,null,null,null,null,null,null,null,null,null,"Vendas"]
[]
[]
[]
[]
[]
[]
[]
[]
[]
[]
[]
[null,null,null,"Fundamentação e caraterização da atividade económica por mercado "]
[null,null,null," - Qual o histórico da empresa em matéria de internacionalização?"]
[null,null,null," - Qual é a estratégia de internacionalização?"]
[null,null,null," - A presença internacional é concentrada em que mercados?"]
[null,null,null," - Justifique os mercados selecionados."]
[]
[]
[]
[]
[]
[]
[]
[]
[]
[]
[]
[]
[]
[]
[]
[]
[]
[null,null,null,"Vendas ao Exterior Indiretas"]
[]
[null,null,null,"NIF","Designação do cliente Exportador","Ano Pré Proj",null,null,"Ano Fim Projeto + 1"]
[null,null,null,null,null,"Vendas do Beneficiário ao Cliente","Volume de Negócios do Cliente",null,"Vendas do Beneficiário ao Cliente","Volume de Negócios do Cliente"]
[null,null,null,null,null,null,"Internacional","Total",null,"Internacional","Total"]
[]
[]
[]
[]
[]
[]
[]
[]
[]
[]
[]
[]
[]
[null,null,null,"Fundamentação e caraterização das Vendas ao Exterior Indiretas"]
[]
[]
[]
[]
[]
[]
[]
[]
[]
[]
[]
[]
[]
[]
[]
[]
[]
[null,null,null,"Notas:"]
[null,null,null,"Existindo vendas indiretas ao exterior, isto é, vendas a clientes no mercado regional quando, posteriormente, estas são incorporadas e/ou revendidas para o mercado externo, as mesmas devem aqui ser claramente identificadas/justificadas, salientando-se que só serão objeto de admissão as que apenas apresentam uma fase de intermediação."]
[]
[null,null,null,"Os valores a indicar são os relativos ao ano pré candidatura e ao ano pós-projeto mencionando os diferentes intervenientes na cadeia de vendas (clientes exportadores): "]
[]
[null,null,null,"• NIF relativo ao Cliente exportador; "]
[null,null,null,"• Designação do Cliente exportador (nome da empresa). "]
[]
[null,null,null,"No quadro da fundamentação deve ser referido o tipo de produto em causa, esclarecendo se é revendido ou se é incorporado noutro produto."]
[]
[null,null,null,"O beneficiário deve identificar o cliente exportador e respetiva faturação, podendo ser solicitados comprovativos dos cálculos apresentados sobre o montante apurado de vendas ao exterior indiretas."]

{"sheet":"CRITERIOS_SELECAO_AUTOVAL","index":8,"n_rows":278,"n_cols":10,"rows_kept":278,"cut":false,"hidden":false,"merged":[[39,3,39,9],[168,3,168,10],[137,3,137,10],[40,3,40,10],[113,3,113,10],[115,3,115,5],[116,3,116,5],[136,3,136,10],[112,3,112,4],[58,3,58,10],[143,3,143,4],[145,3,145,4],[138,3,138,4],[139,3,139,4],[140,3,140,4],[141,3,141,4],[19,3,19,10],[10,2,10,11],[3,2,3,11],[6,2,6,5],[12,2,12,11],[18,3,18,10],[79,3,79,9],[84,3,84,4],[86,3,86,4],[59,3,59,10],[247,3,247,10],[230,3,232,10],[135,3,135,4],[167,3,167,4],[205,3,205,4],[208,3,208,4],[211,3,211,4],[142,3,142,4],[249,3,249,10],[263,3,263,10],[264,3,264,10],[241,3,243,10],[245,3,246,10],[271,3,271,10],[265,3,265,10],[267,3,267,10],[268,3,268,10],[269,3,269,10],[270,3,270,10]]}
[]
[null,null,"BENEFICIÁRIO:"]
[]
[null,null,{"$f":"+CAPA!C9","v":0}]
[]
[null,null,"NIF:"]
[null,null,{"$f":"+CAPA!C12","v":0}]
[]
[null,null,"SISTEMA DE INCENTIVOS:"]
[]
[null,null,{"$f":"+CAPA!C16","v":"INOVAR 2020"}]
[]
[null,null,"Critérios de Seleção – Autoavaliação do Beneficiário"]
[]
[null,null,"  "]
[]
[null,null,null,"CRITÉRIO DE SELEÇÃO A – QUALIDADE DO PROJETO"]
[null,null,null,"Fatores a Valorizar"]
[null,null,null,"A1 – Coerência e pertinência do projeto,  avalia os projetos pelo seu contributo para a concretização da estratégia da empresa face às ameaças/oportunidades dos mercados e capacidades concorrenciais evidenciadas pela mesma e pela respetiva coerência com a estratégia de desenvolvimento económico que tem por objetivo o fortalecimento das componentes de qualificação, inovação e internacionalização e reforço da capacidade empresarial e competitividade da economia da Madeira."]
[null,null,null,"A2 – Grau de inovação do projeto, avalia o contributo do projeto para a promoção da inovação e respetiva natureza assim como a sua dimensão e respetivo âmbito de intervenção, o qual deverá necessariamente estar totalmente alinhado com os objetivos e prioridades definidas na RIS3 Regional. O projeto deverá ainda, resultar diretamente na introdução de novas atividades, novos produtos, serviços e processos ao nível do país e /ou a nível internacional (\"new-to-country\", \"new-to-world\")."]
[]
[null,null,null,"Fundamentação do subcritério A1 "]
[null,null,null," - Identificação clara da estratégia e dos objetivos estratégicos e capacidade de internacionalização."]
[]
[]
[]
[]
[]
[]
[]
[]
[]
[]
[]
[]
[]
[]
[]
[null,null,null,"Fundamentação do subcritério A2"]
[null,null,null,"  - Identificação clara da Tipologia de Inovação, identificando o impato a nível da  Inovação de Produtos e/ou Inovação de Processos."]
[null,null,null," - Identificação clara da dimensão do projeto no mercado. "]
[]
[]
[]
[]
[]
[]
[]
[]
[]
[]
[]
[]
[]
[]
[]
[null,null,null,"Critérios de Seleção B – IMPACTO DO PROJETO NA COMPETITIVIDADE DA EMPRESA "]
[]
[null,null,null,"B1 - Posicionamento na cadeia de valor"]
[null,null,null,"Medida pela capacidade do projeto em criar valor acrescentado na empresa no pós-projeto."]
[null,null,null,"Apresentar os valores apurados para:"]
[null,null,null,null,null,null,null,"VAB pós projeto",null,"(inserir)"]
[null,null,null,null,null,{"$f":"+IF(ISERROR(+(I62/I64*100)),\"\",(I62/I64*100))","v":""}]
[null,null,null,null,null,null,null,"VBP pós projeto",null,"(inserir)"]
[]
[]
[]
[]
[]
[]
[]
[]
[]
[]
[]
[]
[]
[null,null,null,"B2 - Propensão para mercados internacionais e capacidade de penetração"]
[null,null,null,"Fatores a Valorizar"]
[null,null,null," - Avalia o contributo do projeto para a competitividade internacional da empresa e da lógica de negócio e modelo organizacional orientados para o mercado internacional, medido capacidade de penetração no mercado internacional, mensurado pela dinâmica (DE) e intensidade das exportações (IE)."]
[null,null,null," - Descrição da estratégia de internacionalização e respetivo modelo organizacional."]
[null,null,null," - Descrição dos principais mercados internacionais e envolvência da lógica de negócio ."]
[null,null,null,"Fundamentação"]
[null,null,null,"Apresentar os valores apurados para:"]
[null,null,null,"DE = [(VN1 Intern  - VN0 Inter) / VN0 Intern x 100]",null,{"$f":"+IF(ISERROR(+((I85-I87)/I87)*100),\"\",(((I85-I87)/I87)*100))","v":""},null,"VN1 Intern=volume de negócios internacional no ano pós projeto",null,"(inserir)"]
[]
[null,null,null," IE = (VN1 Intern / VN1 total) x 100.",null,{"$f":"+IF(ISERROR(+(I85/I89*100)),\"\",(I85/I89*100))","v":""},null,"VN0 Intern=volume de negócios internacional no ano pré projeto",null,"(inserir)"]
[]
[null,null,null,null,null,null,null,"VN1 total=volume de negócios total no ano pós projeto",null,"(inserir)"]
[]
[]
[]
[]
[]
[]
[]
[]
[]
[]
[]
[]
[]
[]
[]
[]
[]
[null,null,null,"Critérios de Seleção C – CONTRIBUTO DO PROJETO PARA A COMPETITIVIDADE REGIONAL"]
[null,null,null,"Fatores a Valorizar"]
[null,null,null,"C1 – Efeito de arrastamento no tecido económico."]
[null,null,null,"C2 - Potencial de alteração do perfil produtivo regional (RIS3) e interação com entidades não empresarias do SRDITI. "]
[null,null,null,"C3 - Contributo do projeto para a criação de um ambiente socioeconómico mais favorável na Região. "]
[]
[null,null,null,"Fundamentação do subcritério C1"]
[null,null,null,"C1 – Efeito de arrastamento no tecido económico, avalia o impacto na cadeia de valor, sobretudo o contributo do projeto para a criação de valor nas atividades a montante e a jusante e a colaboração com PME: "]
[null,null,null,"a)    Criação de valor nas atividades a jusante ao nível regional;"]
[null,null,null,"b)   Criação de valor nas atividades a jusante ao nível nacional;"]
[null,null,null,"c)    Criação de valor nas atividades a jusante ao nível internacional;"]
[null,null,null,"d)   Criação de valor pela utilização e valorização de inputs fornecidos por PME, no caso das Não PME. "]
[]
[null,null,null,"- Identificação e justificação dos fatores de valoração selecionados. "]
[]
[]
[]
[]
[]
[]
[]
[]
[]
[]
[]
[]
[]
[]
[]
[null,null,null,"Fundamentação do subcritério C2"]
[null,null,null,"C2 - Potencial de alteração do perfil produtivo regional (RIS3) e interação com entidades não empresariais do SRDITI,  avalia o contributo do projeto para a alteração do perfil produtivo regional nos principais domínios da RIS3 regional assim como a interação com entidades do SRDITI e seu contributo para o desenvolvimento da inovação a nível de produtos e/ou processos através de I&D ou de transferência de tecnologia."]
[null,null,null,"a) Os domínios prioritários no âmbito da especialização inteligente, sendo ponderados os domínios temáticos estratégicos, assim como os respetivos objetivos, definidos na RIS3 regional:"]
[null,null,null,"   i) Saúde e bem-estar;"]
[null,null,null,"   ii) Qualidade Agroalimentar;"]
[null,null,null,"   iii) Sustentabilidade, gestão e manutenção de infraestruturas;"]
[null,null,null,"   iv) Bio-sustentabilidade;"]
[null,null,null,"   v) Energia, mobilidade e alterações climáticas;"]
[null,null,null,"   vi) Tecnologias de informação e comunicação;"]
[null,null,null,"   vii) Turismo;"]
[null,null,null,"   viii) Recursos e Tecnologias do Mar."]
[]
[null,null,null,"b) O grau de alinhamento do projeto com a estratégia RIS3 regional de acordo com a explicitação no documento “Madeira 2020 Estratégia Regional de Especialização Inteligente”."]
[null,null,null,"c) O grau de interação, ou seja, se a empresa colabora com entidades não empresariais do SRDITI no âmbito de atividades e projetos de investigação."]
[null,null,null,"- Identificação e justificação dos fatores de valoração selecionados. "]
[]
[]
[]
[]
[]
[]
[]
[]
[]
[]
[]
[]
[]
[]
[]
[]
[]
[null,null,null,"Fundamentação do subcritério C3"]
[null,null,null,"C3 - Contributo do projeto para a criação de um ambiente socioeconómico mais favorável na região, avalia a dimensão dos meios humanos e a capacidade de potenciar novas competências qualificadas na empresa. "]
[null,null,null," - Identificar o nº de postos de trabalho a manter ou a criar independentemente da sua qualificação (CMT)."]
[null,null,null," - Níveis de qualificação dos postos de trabalho a criar, igual ou superior ao nível VI (NQE)."]
[]
[]
[]
[]
[]
[]
[]
[]
[]
[]
[]
[]
[]
[]
[null,null,null,"Critério D - SUSTENTABILIDADE FINANCEIRA DO PROJETO"]
[]
[null,null,null,"Fundamentação do critério D"]
[null,null,null,"- Avaliação da viabilidade económica e financeira do projeto."]
[]
[]
[]
[]
[]
[]
[]
[]
[]
[]
[]
[]
[]
[null,null,null,"- Apresentar os valores apurados para:"]
[]
[null,null,null,null,null,null,null,"Resultado líquido pós projeto",null,"(inserir)"]
[null,null,null,"IRpós-projeto = (Resultado líquido / Volume negócios) x 100 ",null,{"$f":"+IF(ISERROR(+(I205/I206*100)),\"\",(I205/I206*100))","v":""},null,"Volume negócios pós projeto",null,"(inserir)"]
[]
[null,null,null,null,null,null,null,"Capital próprio pós projeto",null,"(inserir)"]
[null,null,null,"ISpós-projeto = (Capital próprio / Total do passivo) x 100 ",null,{"$f":"+IF(ISERROR(+(I208/I209*100)),\"\",(I208/I209*100))","v":""},null,"Total do passivo pós projeto",null,"(inserir)"]
[]
[null,null,null,null,null,null,null,"Capitais próprios do projeto",null,"(inserir)"]
[null,null,null,"FP = (Capitais próprios do projeto / Despesas elegíveis) x 100",null,{"$f":"+IF(ISERROR(+(I211/I212*100)),\"\",(I211/I212*100))","v":""},null,"Total das Despesas elegíveis",null,"(inserir)"]
[]
[]
[]
[]
[]
[]
[]
[]
[]
[]
[]
[]
[]
[]
[null,null,null,"Notas:"]
[]
[null,null,null,"Subcritério A2:"]
[null,null,null,"Grau de impato no mercado:"]
[null,null,null,"• Novo para o mercado nacional: a empresa introduz inovação no seu mercado. O mercado da empresa é definido pelos produtos que oferece, pelo setor que integra, pelos concorrentes da empresa e pela região onde exerce a sua influência. O âmbito geográfico para a inovação de mercado depende da própria visão da empresa sobre o seu mercado. \n• Novo para o mercado internacional: a empresa introduz inovação com o grau de novidade ao nível internacional (inovação no mercado global). \n"]
[]
[]
[]
[null,null,null,"Subcritério B1:"]
[null,null,null,"VAB = VBP - Consumos Intermédios "]
[null,null,null,"VBP = Volume de Negócios + Variação nos inventários da produção + Trabalhos para a própria empresa + Rendimentos Suplementares + Subsídios à Exploração "]
[null,null,null,"Volume de Negócios = Vendas de Produtos + Vendas de Mercadorias + Prestação de serviços "]
[null,null,null,"Consumos Intermédios = Custo das Mercadorias + Custo das Matérias-Primas e Subsidiárias Consumidas + Fornecimentos e Serviços Externos + Impostos Indiretos"]
[]
[null,null,null,"Subcritério B2:"]
[null,null,null,"VN Intern = Volume de negócios internacional: vendas e serviços prestados ao exterior. O conceito de volume negócios internacional inclui a prestação de serviços a não residentes e as vendas indiretas ao exterior. As vendas ao exterior devem estar devidamente relevadas na contabilidade da empresa, refletidas na Informação Empresarial Simplificada (IES) e sustentadas em indicadores que demonstrem as perspetivas de internacionalização do mercado, evolução estratégica da empresa e coerência com as ações previstas na candidatura."]
[]
[]
[null,null,null,"Prestação de serviços a não residentes = inclui alojamento, restauração e outras atividades declaradas de interesse para o Turismo."]
[null,null,null,"Vendas indiretas ao exterior = vendas a clientes no mercado regional quando, posteriormente, estas são incorporadas e/ou revendidas para o mercado externo. Devem ser claramente identificados os diferentes intervenientes na cadeia de vendas (clientes exportadores)."]
[]
[null,null,null,"VN0 = Volume de negócios no ano pré-projeto obtido no exercício económico anterior à data da candidatura."]
[null,null,null,"VN1 = Volume de negócios no ano pós-projeto obtido no primeiro exercício económico completo após a conclusão física e financeira do investimento."]
[null,null,null,"VNtotal = Volume de negócios total."]
[]
[null,null,null,"Subcritério C2"]
[null,null,null,"a) Dominios temáticos estratégios da RIS3:"]
[null,null,null,"• Saúde e bem-estar;"]
[null,null,null,"• Qualidade agroalimentar; "]
[null,null,null,"• Sustentabilidade, Gestão e manutenção de infraestruturas; "]
[null,null,null,"• Bio-sustentabilidade; "]
[null,null,null,"• Energia, mobilidade e alterações climáticas; "]
[null,null,null,"• Tecnologias de informação e comunicação; "]
[null,null,null,"• Turismo; "]
[null,null,null,"• Recursos e tecnologias do mar."]
[]
[null,null,null,"b) O grau de alinhamento do projeto com a estratégia RIS3 regional de acordo com a explicitação no documento “Madeira 2020 Estratégia Regional de Especialização Inteligente”, em que: "]
[null,null,null,"•  Grau de alinhamento baixo – Enquadra-se mas com pouca contribuição para os objetivos definidos em pelo menos um dos domínios temáticos estratégicos ou áreas de aplicação da RIS3 regional. "]
[null,null,null,"•  Grau de alinhamento médio – Enquadra-se mas com moderada contribuição para os objetivos definidos em pelo menos um dos domínios temáticos estratégicos ou áreas de aplicação da RIS3 regional. "]
[null,null,null,"•  Grau de alinhamento alto – Enquadra-se com evidente e significativa contribuição para os objetivos definidos em pelo menos um dos domínios temáticos estratégicos da RIS3 regional."]
[]
[null,null,null,"c) O grau de interação, ou seja, se a empresa colabora com entidades não empresariais do SRDITI no âmbito de atividades e projetos de investigação, em que:"]
[null,null,null,"•  Grau de interação baixo – A empresa não tem na sua estratégia qualquer necessidade de colaboração com entidades não empresariais do SRDITI."]
[null,null,null,"•  Grau de interação moderado – A empresa colabora esporadicamente com entidades não empresariais do SRDITI no âmbito de atividades e projetos de investigação."]
[null,null,null,"•   Grau de interação forte – A empresa colabora com alguma regularidade com entidades não empresariais do SRDITI no âmbito de atividades e projetos de investigação."]
[null,null,null,"•   Grau de interação muito forte – A empresa colabora continuadamente com entidades não empresariais do SRDITI no âmbito de atividades e projetos de investigação."]
[]
[null,null,null,"Subcritério C3"]
[null,null,null,"Nos termos da Portaria n.º 782/2009 de 23 de julho, os níveis de qualificação de emprego a considerar no presente  subcritério são:"]
[null,null,null,"•  Nível 6 - Licenciatura"]
[null,null,null,"• Nível 7 - Mestrado"]
[null,null,null,"• Nível 8 - Doutoramento"]

{"sheet":"Indicadores","index":9,"n_rows":35,"n_cols":8,"rows_kept":35,"cut":false,"hidden":false,"merged":[[30,5,30,6],[34,3,39,8],[4,2,4,10],[7,2,7,3],[11,2,11,10],[14,2,14,10],[28,5,28,6],[29,5,29,6]]}
[]
[]
[null,null,"BENEFICIÁRIO:"]
[]
[null,null,{"$f":"CAPA!C9","v":0}]
[]
[null,null,"NIF:"]
[null,null,{"$f":"CAPA!C12","v":0}]
[]
[null,null,"SISTEMA DE INCENTIVOS:"]
[]
[null,null,{"$f":"CAPA!C16","v":"INOVAR 2020"}]
[]
[]
[null,null,"INDICADORES"]
[null,null,"  "]
[]
[null,null,null,"Indicadores"]
[]
[null,null,null,"N","Designação","Unidade de Medida","Valor pré projeto","Valor no ano de conclusão do projeto"]
[null,null,null,1,"Despesas de I&I das empresas","€"]
[null,null,null,3,"Certificação de Sistemas de Gestão da Investigação Desenvolvimento e Inovação","Nº"]
[null,null,null,4,"Patentes Nacionais","Nº"]
[null,null,null,5,"Patentes Europeias","Nº"]
[null,null,null,6,"Participação em programas internacionais de IDI","Nº"]
[null,null,null,null,"Volume de negócios internacionais","€"]
[]
[]
[null,null,null,"N","Designação","Unidade de Medida",null,"Valor no ano de conclusão do projeto"]
[null,null,null,7,"O.01.02.03.C - Empresas apoiadas para introduzirem  produtos novos no mercado","Nº"]
[null,null,null,8,"O.01.02.01.E - Projetos de transferência e utilização de conhecimento","Nº"]
[]
[]
[null,null,null,"Notas:"]
[null,null,null,"O beneficiário deve referir para os diferentes indicadores o valor quer em termos históricos (pré projeto) quer no ano de conclusão do projeto. Caso não tenha efetuado intervenções nestas componentes terá de preencher os respetivos campos com o valor zero.\n\nPara o indicador de “Despesas de I&I …” deverá considerar para o efeito as despesas em investigação e/ou inovação. \n\nFace à natureza dos Indicadores “Empresas apoiadas para introduzirem produtos novos no mercado” e “Projetos de transferência e utilização de conhecimento” deverá apenas indicar os valores para o ano de conclusão do projeto.\n\n"]

{"sheet":"Financiamento","index":10,"n_rows":106,"n_cols":29,"rows_kept":106,"cut":false,"hidden":false,"merged":[[23,24,23,28],[27,3,27,8],[27,9,27,11],[27,12,27,14],[27,15,27,18],[27,19,27,23],[27,24,27,28],[25,3,25,8],[25,9,25,11],[25,12,25,14],[25,15,25,18],[25,19,25,23],[25,24,25,28],[24,3,24,8],[24,9,24,11],[24,12,24,14],[24,15,24,18],[24,19,24,23],[4,2,4,17],[7,2,7,5],[11,2,11,17],[24,24,24,28],[93,3,93,29],[94,3,94,29],[96,3,96,28],[97,4,97,28],[98,4,98,28],[26,3,26,8],[26,9,26,11],[26,12,26,14],[26,15,26,18],[26,19,26,23],[26,24,26,28],[28,3,28,28],[29,3,29,8],[29,9,29,11],[29,12,29,14],[29,15,29,18],[29,19,29,23],[29,24,29,28],[62,23,62,27],[23,3,23,8],[22,24,22,28],[20,3,20,28],[21,3,21,8],[21,9,21,11],[21,12,21,14],[21,15,21,18],[21,19,21,23],[21,24,21,28],[14,2,14,29],[19,3,19,8],[19,9,19,11],[19,12,19,14],[19,15,19,18],[19,19,19,23],[19,24,19,28],[32,3,32,8],[32,9,32,11],[32,12,32,14],[32,15,32,18],[32,19,32,23],[22,3,22,8],[22,9,22,11],[22,12,22,14],[22,15,22,18],[22,19,22,23],[23,9,23,11],[23,12,23,14],[23,15,23,18],[23,19,23,23],[34,3,34,8],[34,9,34,11],[34,12,34,14],[34,15,34,18],[34,19,34,23],[34,24,34,28],[30,3,30,8],[30,9,30,11],[30,12,30,14],[30,15,30,18],[30,19,30,23],[30,24,30,28],[32,24,32,28],[33,3,33,8],[33,9,33,11],[33,12,33,14],[33,15,33,18],[33,19,33,23],[33,24,33,28],[31,9,31,11],[31,12,31,14],[31,15,31,18],[31,19,31,23],[31,24,31,28],[36,3,36,8],[36,9,36,11],[36,12,36,14],[36,15,36,18],[36,19,36,23],[36,24,36,28],[35,3,35,8],[35,9,35,11],[35,12,35,14],[35,15,35,18],[35,19,35,23],[35,24,35,28],[38,3,38,8],[38,9,38,11],[38,12,38,14],[38,15,38,18],[38,19,38,23],[38,24,38,28],[37,3,37,8],[37,9,37,11],[37,12,37,14],[37,15,37,18],[37,19,37,23],[37,24,37,28],[40,3,40,8],[40,9,40,11],[40,12,40,14],[40,15,40,18],[40,19,40,23],[40,24,40,28],[39,3,39,8],[39,9,39,11],[39,12,39,14],[39,15,39,18],[39,19,39,23],[39,24,39,28],[47,3,47,8],[47,13,47,24],[49,21,49,23],[50,21,50,23],[53,3,53,10],[53,13,53,21],[53,23,53,27],[58,23,58,27],[54,3,54,5],[54,7,54,10],[54,13,54,21],[54,23,54,27],[55,3,55,5],[55,7,55,10],[55,14,55,20],[57,23,57,27],[57,13,57,21],[58,14,58,20],[55,23,55,27],[56,23,56,27],[59,23,59,27],[60,23,60,27],[60,13,60,21],[61,14,61,20],[61,23,61,27],[65,25,65,26],[90,4,91,28],[102,4,102,28],[105,3,105,28],[84,3,84,28],[85,3,85,28],[86,3,86,28],[87,3,87,28],[88,4,88,28],[89,4,89,28],[99,4,99,28],[100,4,100,28],[101,4,101,28]]}
[]
[]
[null,null,"BENEFICIÁRIO:"]
[]
[null,null,{"$f":"+CAPA!C9","v":0}]
[]
[null,null,"NIF:"]
[null,null,{"$f":"+CAPA!C12","v":0}]
[]
[null,null,"SISTEMA DE INCENTIVOS:"]
[]
[null,null,{"$f":"+CAPA!C16","v":"INOVAR 2020"}]
[]
[]
[null,null,"FINANCIAMENTO DO PROJECTO"]
[]
[]
[null,null,null," Estrutura de Financiamento (Recursos Financeiros)    "]
[]
[null,null,null,"Fontes",null,null,null,null,null,"n",null,null,"n+1",null,null,"n+2",null,null,null,"Total",null,null,null,null,"% Investimento"]
[null,null,null,"1. Capitais Próprios (1)"]
[null,null,null,"Capital",null,null,null,null,null,null,null,null,null,null,null,null,null,null,null,{"$f":"SUM(J22:S22)","v":0},null,null,null,null,{"$f":"IF(ISERROR(T22/$T$41),\"0%\",T22/$T$41)","v":"0%"}]
[null,null,null,"Prestações Suplementares de Capital",null,null,null,null,null,null,null,null,null,null,null,null,null,null,null,{"$f":"SUM(J23:S23)","v":0},null,null,null,null,"0%"]
[null,null,null,"Suprimentos Consolidados (2)",null,null,null,null,null,null,null,null,null,null,null,null,null,null,null,0,null,null,null,null,"0%"]
[null,null,null,"Sub-Total 1",null,null,null,null,null,{"$f":"+J24+J23+J22","v":0},null,null,{"$f":"+M24+M23+M22","v":0},null,null,{"$f":"+P24+P23+P22","v":0},null,null,null,0,null,null,null,null,"0%"]
[null,null,null,"2. Autofinanciamento (3)",null,null,null,null,null,null,null,null,null,null,null,null,null,null,null,{"$f":"SUM(J26:S26)","v":0},null,null,null,null,"0%"]
[null,null,null,"3. Outros (4)",null,null,null,null,null,null,null,null,null,null,null,null,null,null,null,{"$f":"SUM(J27:S27)","v":0},null,null,null,null,"0%"]
[null,null,null,"Sub-Total 2",null,null,null,null,null,{"$f":"+J26+J27","v":0},null,null,{"$f":"+M26+M27","v":0},null,null,{"$f":"+P26+P27","v":0},null,null,null,{"$f":"SUM(J28:S28)","v":0},null,null,null,null,"0%"]
[null,null,null,"4. Capitais Alheios"]
[null,null,null,"Dívidas a Instituições de Crédito",null,null,null,null,null,null,null,null,null,null,null,null,null,null,null,{"$f":"SUM(J30:S30)","v":0},null,null,null,null,{"$f":"IF(ISERROR(T30/$T$41),\"0%\",T30/$T$41)","v":"0%"}]
[null,null,null,"Empréstimos Obrigacionistas",null,null,null,null,null,null,null,null,null,null,null,null,null,null,null,0,null,null,null,null,{"$f":"IF(ISERROR(T31/$T$41),\"0%\",T31/$T$41)","v":"0%"}]
[null,null,null,"Outras dívidas a Sócios / accionistas",null,null,null,null,null,null,null,null,null,null,null,null,null,null,null,0,null,null,null,null,{"$f":"IF(ISERROR(T32/$T$41),\"0%\",T32/$T$41)","v":"0%"}]
[null,null,null,"Fornecedores Imobilizado",null,null,null,null,null,null,null,null,null,null,null,null,null,null,null,0,null,null,null,null,"0%"]
[null,null,null,"Locação Financeira",null,null,null,null,null,null,null,null,null,null,null,null,null,null,null,0,null,null,null,null,"0%"]
[null,null,null,"Outros",null,null,null,null,null,null,null,null,null,null,null,null,null,null,null,0,null,null,null,null,"0%"]
[null,null,null,"Sub-Total 3",null,null,null,null,null,{"$f":"+J35+J34+J33+J32+J31+J30","v":0},null,null,{"$f":"+M35+M34+M33+M32+M31+M30","v":0},null,null,{"$f":"+P35+P34+P33+P32+P31+P30","v":0},null,null,null,{"$f":"SUM(J36:S36)","v":0},null,null,null,null,"0%"]
[null,null,null,"Incentivo Não Reembolsável (INR)",null,null,null,null,null,null,null,null,null,null,null,null,null,null,null,0,null,null,null,null,"0%"]
[null,null,null,"Incentivo Reembolsável (IR)",null,null,null,null,null,null,null,null,null,null,null,null,null,null,null,0,null,null,null,null,"0%"]
[null,null,null,"Sub-Total 4",null,null,null,null,null,{"$f":"+J37+J38","v":0},null,null,{"$f":"+M37+M38","v":0},null,null,{"$f":"+P37+P38","v":0},null,null,null,0,null,null,null,null,"0%"]
[null,null,null,"FINANCIAMENTO TOTAL",null,null,null,null,null,{"$f":"+J39+J36+J25","v":0},null,null,{"$f":"+M39+M36+M25","v":0},null,null,{"$f":"+P39+P36+P25","v":0},null,null,null,0,null,null,null,null,"0%"]
[null,null,null,"INVESTIMENTO TOTAL",null,null,null,null,null,null,null,null,null,null,null,null,null,null,null,{"$f":"+J41+M41+P41","v":0}]
[null,null,null,"(1) Novos capitais próprios"]
[null,null,null,"2) Novos suprimentos a incorporar em capital próprio até ao encerramento do projecto, para efeitos de cumprimento da condição de elegibilidade do projeto e do Critério D (FP)"]
[null,null,null,"(3) Resultado líquido do exercício + imparidades + provisões + gastos/reversões de depreciação e amortização, do ano pré-projecto"]
[null,null,null,"(4) Reafectação de valores do activo sem reflexo no autofinanciamento"]
[null,null,null,"(5) Investimento total de preencimento obrigatório"]
[]
[null,null,null,"Financiamento Bancário Assegurado",null,null,null,null,null,null,null,null,null,"Modalidades de Intervenção da Instituição de Crédito"]
[null,null,null,null,null,null,null,null,null,null,null,null,null,"Pedido de Financiamento à Instituição de Crédito:"]
[null,null,null,null,"Sim",null,null,"Não",null,null,null,null,null,"Crédito Bancário",null,null,null,null,null,"Montante:"]
[null,null,null,null,null,null,null,null,null,null,null,null,null,"Locação Financeira",null,null,null,null,null,"Montante:"]
[null,null,null,null,null,null,null,null,null,null,null,null,null,"Prestação de Garantia Bancária"]
[]
[null,null,null,"Outras Formas Financiamento",null,null,null,null,null,null,null,null,null,"Fontes de financiamento",null,null,null,null,null,null,null,null,null,"Capital Próprio Projeto - CPp"]
[null,null,null,"Garantia Mútua",null,null,null,"                 Outra",null,null,null,null,null,"(CPp/DEp) ≥ 20%",null,null,null,null,null,null,null,null,null,{"$f":"+T25","v":0}]
[null,null,null,"Capital Risco",null,null,null,null,null,null,null,null,null,null,{"$f":"IF(ISERROR(+X55/X59),\"\",X55/X59)","v":""},null,null,null,null,null,null,null,null,"Capital Alheios Projeto - CAp"]
[null,null,null,null,null,null,null,null,null,null,null,null,null,null,null,null,null,"ou",null,null,null,null,null,{"$f":"+T36","v":0}]
[null,null,null,null,null,null,null,null,null,null,null,null,null,"(CPe + CPp) /(AT+ DEp ) ≥ 20%",null,null,null,null,null,null,null,null,null,"Despesa elegível projeto - Dep"]
[null,null,null,null,null,null,null,null,null,null,null,null,null,null,{"$f":"IF(ISERROR((+X55+X61)/(X63+X59)),\"\",(+X55+X61)/(X59+X63))","v":""},null,null,null,null,null,null,null,null,null,null,null,null,null,"(inserir)"]
[null,null,null,null,null,null,null,null,null,null,null,null,null,null,null,null,null,"e",null,null,null,null,null,"Capital próprio empresa - Cpe"]
[null,null,null,null,null,null,null,null,null,null,null,null,null,"(CPp + CAp) / DEp ≥ 25%",null,null,null,null,null,null,null,null,null,null,null,null,null,null,"(inserir)"]
[null,null,null,null,null,null,null,null,null,null,null,null,null,null,{"$f":"IF(ISERROR(+(X55+X57)/X59),\"\",(X55+X57)/X59)","v":""},null,null,null,null,null,null,null,null,"Ativo total da empresa - AT"]
[null,null,null,null,null,null,null,null,null,null,null,null,null,null,null,null,null,null,null,null,null,null,null,null,null,null,null,null,"(inserir)"]
[]
[null,null,null,null,null,null,null,null,null,null,null,null,null,"Nota: Atenção que  para efeitos do critério D apenas é considerado CPp/Dep."]
[null,null,null,null,null,null,null,null,null,null,null,null,null,null,null,null,null,null,null,null,null,null,null,null,null,{"$f":"+IF(ISERROR(+(X55)/X57),\"\",(X55)/X57)","v":""}]
[null,null,null,"Demonstração das Fontes de Financiamento"]
[]
[]
[]
[]
[]
[]
[]
[]
[]
[]
[]
[]
[]
[]
[null,null,null,"Descrição das Fontes de Financiamento: "]
[null,null,null,"O beneficiário deverá justificar os valores e fontes indicadas na tabela, através de uma breve descrição."]
[]
[null,null,null,"Pretende-se, no quadro de Estrutura de Financiamento (Recursos Financeiros) do projeto, a indicação dos meios de financiamento do investimento nos anos da sua execução. "]
[null,null,null,"O financiamento total e anual deve ser coincidente com o correspondente investimento total e anual, inserido no quadro dos investimentos "]
[null,null,null,"O beneficiário tem de evidenciar que as fontes de financiamento estão asseguradas, devendo os correspondentes documentos comprovativos constar do Dossier de Projeto: "]
[null,null,null,"Capitais Próprios "]
[null,null,null,null,"Capital - indicação de qual o aumento de capital que, eventualmente, irá financiar o investimento. "]
[null,null,null,null,"Prestações Suplementares de Capital - indicação de qual o aumento de prestações suplementares que, eventualmente, irá financiar o investimento. "]
[null,null,null,null,"Suprimentos -  Novos suprimentos a incorporar em capital próprio até ao encerramento do projecto, para efeitos de cumprimento da condição de elegibilidade do projeto e do critério D (FP)."]
[]
[null,null,null,"Autofinanciamento "]
[null,null,null,"Poderá ser utilizado em cada ano de execução do investimento, um valor de autofinanciamento, que tenha como limite os meios libertos líquidos\n (Resultados Líquidos do Período + Gastos/Reversões de Depreciação e de Amortização + Imparidades + Provisões + Aumentos/reduções de justo valor)."]
[null,null,null,"Outros, poderão ser utilizadas outras forma de financiamento."]
[]
[null,null,null,"Capitais Alheios: "]
[null,null,null,null,"Dividas Instituições de Crédito - indicação de qual o valor de empréstimos bancários que, eventualmente, irá financiar o investimento. Na fase de candidatura, deverá entregar o documento comprovativo da aprovação do financiamento bancário ou de intenção de financiamento. "]
[null,null,null,null,"Empréstimos por Obrigações - Indicação de qual o valor de empréstimos obrigacionistas que, eventualmente, irá financiar o investimento. Na fase de candidatura, deverá dispor no Dossier do Projeto, da cópia da ata deliberativa da realização do empréstimo obrigacionista, incluindo as respetivas condições, nomeadamente, o montante, a taxa de juro, o valor nominal, o preço de emissão, o valor de reembolso e o método de amortização das obrigações. "]
[null,null,null,null,"Dívidas a Sócios/Acionistas - Indicação de qual o valor de outras eventuais dívidas a sócios/acionistas, que irão financiar o investimento. "]
[null,null,null,null,"Fornecedores imobilizado - indicação de qual o valor de fornecedores de imobilizado que, eventualmente, irá financiar o investimento. A maturidade do crédito concedido por Fornecedores de Imobilizado terá de ser igual ao prazo de execução do investimento. Na fase de candidatura, o documento comprovativo do acordo com o fornecedor de imobilizado, deverá integrar o Dossier de Projeto. "]
[null,null,null,null,"Locação Financeira – referência ao valor de locação financeira que, eventualmente, irá financiar o investimento. O beneficiário deve comprometer-se a concretizar a opção de compra do bem locado, no final do contrato de locação financeira. "]
[null,null,null,null,"Outros - Indicação de qual o valor de outras eventuais outras fontes, que irão financiar o investimento. "]
[]
[null,null,null,"Incentivos: "]
[null,null,null,"O beneficiário deverá indicar o montante de incentivo reembolsável que previsivelmente lhe venha a ser atribuído de acordo com as taxas e regras constantes do Regulamento. "]

{"sheet":"Balanço empresa ","index":11,"n_rows":84,"n_cols":18,"rows_kept":84,"cut":false,"hidden":false,"merged":[[10,2,10,17],[6,2,6,5],[3,2,3,17],[16,3,16,4],[16,16,16,17],[12,2,12,18],[14,2,14,7],[14,8,14,10],[17,3,17,13],[17,14,17,15],[18,3,18,13],[18,14,18,15],[19,3,19,13],[19,14,19,15],[20,3,20,13],[20,14,20,15],[21,3,21,13],[21,14,21,15],[22,3,22,13],[22,14,22,15],[23,3,23,13],[23,14,23,15],[24,3,24,13],[24,14,24,15],[25,3,25,13],[25,14,25,15],[26,3,26,13],[26,14,26,15],[27,3,27,13],[27,14,27,15],[28,3,28,13],[28,14,28,15],[40,14,40,15],[30,3,30,13],[30,14,30,15],[31,14,31,15],[32,14,32,15],[33,14,33,15],[34,14,34,15],[35,14,35,15],[36,14,36,15],[37,14,37,15],[38,14,38,15],[39,14,39,15],[41,14,41,15],[42,14,42,15],[43,14,43,15],[44,14,44,15],[46,3,46,13],[46,14,46,15],[58,14,58,15],[47,14,47,15],[48,14,48,15],[49,14,49,15],[50,14,50,15],[51,14,51,15],[52,14,52,15],[53,14,53,15],[54,14,54,15],[55,14,55,15],[56,14,56,15],[57,14,57,15],[71,14,71,15],[59,14,59,15],[60,14,60,15],[62,14,62,15],[63,14,63,15],[64,14,64,15],[65,14,65,15],[66,14,66,15],[67,14,67,15],[68,14,68,15],[69,14,69,15],[70,14,70,15],[83,14,83,15],[72,14,72,15],[73,14,73,15],[74,14,74,15],[75,14,75,15],[76,14,76,15],[77,14,77,15],[78,14,78,15],[79,14,79,15],[80,14,80,15],[81,14,81,15],[82,14,82,15]]}
[]
[null,null,"BENEFICIÁRIO:"]
[]
[null,null,{"$f":"+CAPA!C9","v":0}]
[]
[null,null,"NIF:"]
[null,null,{"$f":"+CAPA!C12","v":0}]
[]
[null,null,"SISTEMA DE INCENTIVOS:"]
[]
[null,null,{"$f":"+CAPA!C16","v":"INOVAR 2020"}]
[]
[null,null,"BALANÇO DA EMPRESA PRÉ CANDIDATURA"]
[]
[null,null,"Data da candidatura:"]
[]
[null,null,null,"(euros)",null,null,null,null,null,null,null,null,null,null,null,null,"EMPRESA PRÉ CANDIDATURA"]
[null,null,null,"ACTIVO",null,null,null,null,null,null,null,null,null,null,"Notas",null,{"$f":"IF(YEAR($I$15)=\"\",\"\",YEAR($I$15)-2)","v":1898},{"$f":"IF(YEAR($I$15)=\"\",\"\",YEAR($I$15)-1)","v":1899}]
[null,null,null,"Activo não corrente"]
[null,null,null,"activos fixos tangíveis"]
[null,null,null,"Propriedades de investimento"]
[null,null,null,"Goodwill"]
[null,null,null,"Activos Intangíveis"]
[null,null,null,"Activos biológicos"]
[null,null,null,"Participações financeiras - método da equivalência patrimonial"]
[null,null,null,"Participações financeiras - outros métodos"]
[null,null,null,"Accionistas/sócios"]
[null,null,null,"Outros activos financeiros"]
[null,null,null,"Activos por impostos diferidos"]
[null,null,null,null,null,null,null,null,null,null,null,null,null,null,null,null,{"$f":"+Q19+Q20+Q21+Q22+Q23+Q24+Q25+Q26+Q27+Q28+Q29","v":0},0]
[null,null,null,"Activo corrente"]
[null,null,null,"Inventários "]
[null,null,null,"Activos biológicos"]
[null,null,null,"Clientes"]
[null,null,null,"Adiantamentos a fornecedores"]
[null,null,null,"Estado e outros entes públicos"]
[null,null,null,"Accionistas/sócios"]
[null,null,null,"Outras contas a receber"]
[null,null,null,"Diferimentos"]
[null,null,null,"Activos financeiros detidos para negociação"]
[null,null,null,"Outros activos financeiros"]
[null,null,null,"Activos não correntes detidos para venda"]
[null,null,null,"Caixa e depósitos bancários"]
[null,null,null,null,null,null,null,null,null,null,null,null,null,null,null,null,{"$f":"+Q31+Q32+Q33+Q34+Q35+Q36+Q37+Q38+Q39+Q40+Q41+Q42+Q43","v":0},0]
[null,null,null,"TOTAL DO ACTIVO",null,null,null,null,null,null,null,null,null,null,null,null,{"$f":"+Q30+Q44","v":0},0]
[]
[null,null,null,"CAPITAL PRÓPRIO E PASSIVO"]
[null,null,null,"CAPITAL PRÓPRIO  "]
[null,null,null,"Capital realizado"]
[null,null,null,"Acções (quotas) próprias "]
[null,null,null,"Outros instrumentos de capital próprio"]
[null,null,null,"Prémios de emissão"]
[null,null,null,"Reservas legais"]
[null,null,null,"Outras reservas"]
[null,null,null,"Resultados transitados"]
[null,null,null,"Ajustamentos em activos financeiros"]
[null,null,null,"Excedentes de revalorização"]
[null,null,null,"Outras variações no capital próprio"]
[null,null,null,"Resultado líquido do período "]
[null,null,null,"Interesses minoritários"]
[null,null,null,"Total do capital próprio",null,null,null,null,null,null,null,null,null,null,null,null,{"$f":"+Q48+Q49+Q50+Q51+Q52+Q53+Q54+Q55+Q56+Q57+Q58+Q59+Q60","v":0},0]
[]
[null,null,null,"Passivo"]
[null,null,null,"Passivo não corrente"]
[null,null,null,"Provisões"]
[null,null,null,"Financiamentos obtidos"]
[null,null,null,"Responsabilidades por belefícios pós-emprego"]
[null,null,null,"Passivos por impostos diferidos"]
[null,null,null,"Outras contas a pagar"]
[null,null,null,null,null,null,null,null,null,null,null,null,null,null,null,null,{"$f":"+Q63+Q64+Q65+Q66+Q67+Q68+Q69","v":0},0]
[null,null,null,"Passivo corrente"]
[null,null,null,"Fornecedores"]
[null,null,null,"Adiantamento de clientes"]
[null,null,null,"Estado e outros entes públicos"]
[null,null,null,"Accionistas/sócios"]
[null,null,null,"Financiamentos obtidos"]
[null,null,null,"Outras contas a pagar"]
[null,null,null,"Diferimentos"]
[null,null,null,"Passivos financeiros detidos para negociação"]
[null,null,null,"Outros passivos financeiros"]
[null,null,null,"Passivos não correntes detidos para venda"]
[null,null,null,null,null,null,null,null,null,null,null,null,null,null,null,null,{"$f":"+Q71+Q72+Q73+Q74+Q75+Q76+Q77+Q78+Q79+Q80+Q81","v":0},0]
[null,null,null,"Total do passivo",null,null,null,null,null,null,null,null,null,null,null,null,{"$f":"+Q70+Q82","v":0},0]
[null,null,null,"Total do capital próprio e do passivo",null,null,null,null,null,null,null,null,null,null,null,null,{"$f":"+Q61+Q83","v":0},0]

{"sheet":"Balanço da empresa pós Proj","index":12,"n_rows":84,"n_cols":26,"rows_kept":84,"cut":false,"hidden":false,"merged":[[16,3,16,4],[16,16,16,25],[12,2,12,26],[14,2,14,7],[14,8,14,10],[17,3,17,13],[17,14,17,15],[18,3,18,13],[18,14,18,15],[19,3,19,13],[19,14,19,15],[20,3,20,13],[20,14,20,15],[21,3,21,13],[21,14,21,15],[22,3,22,13],[22,14,22,15],[23,3,23,13],[23,14,23,15],[24,3,24,13],[24,14,24,15],[25,3,25,13],[25,14,25,15],[26,3,26,13],[26,14,26,15],[27,3,27,13],[27,14,27,15],[28,3,28,13],[28,14,28,15],[40,14,40,15],[30,3,30,13],[30,14,30,15],[31,14,31,15],[32,14,32,15],[33,14,33,15],[34,14,34,15],[35,14,35,15],[36,14,36,15],[37,14,37,15],[38,14,38,15],[39,14,39,15],[41,14,41,15],[42,14,42,15],[43,14,43,15],[44,14,44,15],[46,3,46,13],[46,14,46,15],[70,14,70,15],[58,14,58,15],[47,14,47,15],[48,14,48,15],[49,14,49,15],[50,14,50,15],[51,14,51,15],[52,14,52,15],[53,14,53,15],[54,14,54,15],[55,14,55,15],[56,14,56,15],[57,14,57,15],[65,14,65,15],[66,14,66,15],[67,14,67,15],[68,14,68,15],[69,14,69,15],[59,14,59,15],[60,14,60,15],[62,14,62,15],[63,14,63,15],[64,14,64,15],[3,2,3,17],[6,2,6,5],[10,2,10,17],[83,14,83,15],[72,14,72,15],[73,14,73,15],[74,14,74,15],[75,14,75,15],[76,14,76,15],[77,14,77,15],[78,14,78,15],[79,14,79,15],[80,14,80,15],[81,14,81,15],[82,14,82,15],[71,14,71,15]]}
[]
[null,null,"BENEFICIÁRIO:"]
[]
[null,null,{"$f":"+CAPA!C9","v":0}]
[]
[null,null,"NIF:"]
[null,null,{"$f":"+CAPA!C12","v":0}]
[]
[null,null,"SISTEMA DE INCENTIVOS:"]
[]
[null,null,{"$f":"+CAPA!C16","v":"INOVAR 2020"}]
[]
[null,null,"BALANÇO DA EMPRESA COM IMPLEMENTAÇÃO DO PROJETO"]
[]
[null,null,"Data de Inicio da despesa:"]
[]
[null,null,null,"(euros)",null,null,null,null,null,null,null,null,null,null,null,null,"EMPRESA COM IMPLEMENTAÇÃO DO PROJETO"]
[null,null,null,"ACTIVO",null,null,null,null,null,null,null,null,null,null,"Notas",null,{"$f":"IF(YEAR($I$15)=\"\",\"\",YEAR($I$15))","v":1900},{"$f":"IF(YEAR($I$15)=\"\",\"\",YEAR($I$15)+1)","v":1901},{"$f":"IF(YEAR($I$15)=\"\",\"\",YEAR($I$15)+2)","v":1902},{"$f":"IF(YEAR($I$15)=\"\",\"\",YEAR($I$15)+3)","v":1903},{"$f":"IF(YEAR($I$15)=\"\",\"\",YEAR($I$15)+4)","v":1904},{"$f":"IF(YEAR($I$15)=\"\",\"\",YEAR($I$15)+5)","v":1905},{"$f":"IF(YEAR($I$15)=\"\",\"\",YEAR($I$15)+6)","v":1906},{"$f":"IF(YEAR($I$15)=\"\",\"\",YEAR($I$15)+7)","v":1907},{"$f":"IF(YEAR($I$15)=\"\",\"\",YEAR($I$15)+8)","v":1908},{"$f":"IF(YEAR($I$15)=\"\",\"\",YEAR($I$15)+9)","v":1909}]
[null,null,null,"Activo não corrente"]
[null,null,null,"activos fixos tangíveis"]
[null,null,null,"Propriedades de investimento"]
[null,null,null,"Goodwill"]
[null,null,null,"Activos Intangíveis"]
[null,null,null,"Activos biológicos"]
[null,null,null,"Participações financeiras - método da equivalência patrimonial"]
[null,null,null,"Participações financeiras - outros métodos"]
[null,null,null,"Accionistas/sócios"]
[null,null,null,"Outros activos financeiros"]
[null,null,null,"Activos por impostos diferidos"]
[null,null,null,null,null,null,null,null,null,null,null,null,null,null,null,null,{"$f":"+Q20+Q21+Q22+Q23+Q24+Q25+Q26+Q27+Q28+Q29","v":0},{"$f":"+R20+R21+R22+R23+R24+R25+R26+R27+R28+R29","v":0},0,0,0,0,0,0,0,0]
[null,null,null,"Activo corrente"]
[null,null,null,"Inventários "]
[null,null,null,"Activos biológicos"]
[null,null,null,"Clientes"]
[null,null,null,"Adiantamentos a fornecedores"]
[null,null,null,"Estado e outros entes públicos"]
[null,null,null,"Accionistas/sócios"]
[null,null,null,"Outras contas a receber"]
[null,null,null,"Diferimentos"]
[null,null,null,"Activos financeiros detidos para negociação"]
[null,null,null,"Outros activos financeiros"]
[null,null,null,"Activos não correntes detidos para venda"]
[null,null,null,"Caixa e depósitos bancários"]
[null,null,null,null,null,null,null,null,null,null,null,null,null,null,null,null,{"$f":"+Q32+Q33+Q34+Q35+Q36+Q37+Q38+Q39+Q40+Q41+Q42+Q43","v":0},{"$f":"+R32+R33+R34+R35+R36+R37+R38+R39+R40+R41+R42+R43","v":0},0,0,0,0,0,0,0,0]
[null,null,null,"TOTAL DO ACTIVO",null,null,null,null,null,null,null,null,null,null,null,null,{"$f":"+Q30+Q44","v":0},0,0,0,0,0,0,0,0,0]
[]
[null,null,null,"CAPITAL PRÓPRIO E PASSIVO"]
[null,null,null,"CAPITAL PRÓPRIO  "]
[null,null,null,"Capital realizado"]
[null,null,null,"Acções (quotas) próprias "]
[null,null,null,"Outros instrumentos de capital próprio"]
[null,null,null,"Prémios de emissão"]
[null,null,null,"Reservas legais"]
[null,null,null,"Outras reservas"]
[null,null,null,"Resultados transitados"]
[null,null,null,"Ajustamentos em activos financeiros"]
[null,null,null,"Excedentes de revalorização"]
[null,null,null,"Outras variações no capital próprio"]
[null,null,null,"Resultado líquido do período "]
[null,null,null,"Interesses minoritários"]
[null,null,null,"Total do capital próprio",null,null,null,null,null,null,null,null,null,null,null,null,{"$f":"+Q48+Q49+Q50+Q51+Q52+Q53+Q54+Q55+Q56+Q57+Q58+Q59+Q60","v":0},0,0,0,0,0,0,0,0,0]
[]
[null,null,null,"Passivo"]
[null,null,null,"Passivo não corrente"]
[null,null,null,"Provisões"]
[null,null,null,"Financiamentos obtidos"]
[null,null,null,"Responsabilidades por belefícios pós-emprego"]
[null,null,null,"Passivos por impostos diferidos"]
[null,null,null,"Outras contas a pagar"]
[null,null,null,null,null,null,null,null,null,null,null,null,null,null,null,null,{"$f":"++Q65+Q66+Q67+Q68+Q69","v":0},{"$f":"+R63+R64+R65+R66+R67+R68+R69","v":0},0,0,0,0,0,0,0,0]
[null,null,null,"Passivo corrente"]
[null,null,null,"Fornecedores"]
[null,null,null,"Adiantamento de clientes"]
[null,null,null,"Estado e outros entes públicos"]
[null,null,null,"Accionistas/sócios"]
[null,null,null,"Financiamentos obtidos"]
[null,null,null,"Outras contas a pagar"]
[null,null,null,"Diferimentos"]
[null,null,null,"Passivos financeiros detidos para negociação"]
[null,null,null,"Outros passivos financeiros"]
[null,null,null,"Passivos não correntes detidos para venda"]
[null,null,null,null,null,null,null,null,null,null,null,null,null,null,null,null,{"$f":"+Q72+Q73+Q74+Q75+Q76+Q77+Q78+Q79+Q80+Q81","v":0},{"$f":"+R72+R73+R74+R75+R76+R77+R78+R79+R80+R81","v":0},0,0,0,0,0,0,0,0]
[null,null,null,"Total do passivo",null,null,null,null,null,null,null,null,null,null,null,null,{"$f":"+Q70+Q82","v":0},0,0,0,0,0,0,0,0,0]
[null,null,null,"Total do capital próprio e do passivo",null,null,null,null,null,null,null,null,null,null,null,null,{"$f":"+Q61+Q83","v":0},0,0,0,0,0,0,0,0,0]

{"sheet":"D. Resultados empresa","index":13,"n_rows":54,"n_cols":18,"rows_kept":54,"cut":false,"hidden":false,"merged":[[51,3,51,13],[51,14,51,15],[52,3,52,13],[52,14,52,15],[53,3,53,13],[53,14,53,15],[3,2,3,17],[6,2,6,5],[10,2,10,17],[12,2,12,18],[15,16,15,17],[19,3,19,13],[22,3,22,13],[16,3,16,13],[17,3,17,13],[17,14,17,15],[18,3,18,13],[26,3,26,13],[27,3,27,13],[28,3,28,13],[23,3,23,13],[24,3,24,13],[25,3,25,13],[32,3,32,13],[33,3,33,13],[34,3,34,13],[29,3,29,13],[30,3,30,13],[31,3,31,13],[38,3,38,13],[39,3,39,13],[40,3,40,13],[35,3,35,13],[36,3,36,13],[37,3,37,13],[41,3,41,13],[43,3,43,13],[43,14,43,15],[45,3,45,13],[45,14,45,15],[49,3,49,13],[49,14,49,15],[46,3,46,13],[46,14,46,15],[47,3,47,13],[47,14,47,15]]}
[]
[null,null,"BENEFICIÁRIO:"]
[]
[null,null,{"$f":"+CAPA!C9","v":0}]
[]
[null,null,"NIF:"]
[null,null,{"$f":"+CAPA!C12","v":0}]
[]
[null,null,"SISTEMA DE INCENTIVOS:"]
[]
[null,null,{"$f":"+CAPA!C16","v":"INOVAR 2020"}]
[]
[null,null,"DEMONSTRAÇÃO DE RESULTADOS PRÉ CANDIDATURA"]
[null,null,"  "]
[]
[null,null,null,null,null,null,null,null,null,null,null,null,null,null,null,null,"EMPRESA PRÉ CANDIDATURA"]
[null,null,null,null,null,null,null,null,null,null,null,null,null,null,"Notas",null,{"$f":"+'Balanço empresa '!Q18","v":1898},{"$f":"+'Balanço empresa '!R18","v":1899}]
[null,null,null,"RENDIMENTOS E GASTOS"]
[null,null,null,"Vendas e serviços prestados",null,null,null,null,null,null,null,null,null,null,null,"+"]
[null,null,null,"Subsídios à exploração",null,null,null,null,null,null,null,null,null,null,null,"+"]
[null,null,null,"Ganhos/perdas imputados de subsidiárias, associadas e empreendimentos conjuntos",null,null,null,null,null,null,null,null,null,null,null,"+/-"]
[null,null,null,"Variação nos inventários da produção",null,null,null,null,null,null,null,null,null,null,null,"+/-"]
[null,null,null,"Trabalhos para a própria entidade",null,null,null,null,null,null,null,null,null,null,null,"+"]
[null,null,null,"Custo das mercadorias vendidas e das matérias consumidas",null,null,null,null,null,null,null,null,null,null,null,"-"]
[null,null,null,"Fornecimentos e serviços externos",null,null,null,null,null,null,null,null,null,null,null,"-"]
[null,null,null,"Gastos com o pessoal",null,null,null,null,null,null,null,null,null,null,null,"-"]
[null,null,null,"Imparidade de inventários (perdas/reversões)",null,null,null,null,null,null,null,null,null,null,null,"-/+"]
[null,null,null,"Imparidade de dívidas a receber (perdas/reversões)",null,null,null,null,null,null,null,null,null,null,null,"-/+"]
[null,null,null,"Provisões (perdas/reduções)",null,null,null,null,null,null,null,null,null,null,null,"-/+"]
[null,null,null,"Imparidade de investimentos não depreciáveis/amortizações (perdas/reversões)",null,null,null,null,null,null,null,null,null,null,null,"-/+"]
[null,null,null,"Aumentos/reduções de justo valor",null,null,null,null,null,null,null,null,null,null,null,"+/-"]
[null,null,null,"Outros rendimentos e ganhos",null,null,null,null,null,null,null,null,null,null,null,"+"]
[null,null,null,"Outros gastos e perdas",null,null,null,null,null,null,null,null,null,null,null,"-"]
[null,null,null,"Resultados antes de depreciações, gastos de financiamento e impostos",null,null,null,null,null,null,null,null,null,null,null,"=",{"$f":"SUM(Q19:Q33)","v":0},{"$f":"SUM(R19:R33)","v":0}]
[null,null,null,"Gastos/reversões de depreciação e de amortização",null,null,null,null,null,null,null,null,null,null,null,"-/+"]
[null,null,null,"Imparidade de investimentos depreciáveis/amorizáveis (perdas/reversões)",null,null,null,null,null,null,null,null,null,null,null,"-/+"]
[null,null,null,"Resultado operacional (antes de gastos de financiamento e impostos)",null,null,null,null,null,null,null,null,null,null,null,"=",{"$f":"+Q34+Q35+Q36","v":0},0]
[null,null,null,"Juros e rendimentos similares obtidos",null,null,null,null,null,null,null,null,null,null,null,"+"]
[null,null,null,"Juros e gastos similares suportados",null,null,null,null,null,null,null,null,null,null,null,"-"]
[null,null,null,"Resultado antes de impostos",null,null,null,null,null,null,null,null,null,null,null,"=",{"$f":"+Q37+Q38+Q39","v":0},0]
[null,null,null,"Imposto sobre o rendimento do período",null,null,null,null,null,null,null,null,null,null,null,"-/+"]
[null,null,null,"Resultado líquido do período",null,null,null,null,null,null,null,null,null,null,null,"=",{"$f":"+Q40+Q41","v":0},0]
[]
[null,null,null,"Resultado das actividades descontinuadas (líquido de impostos) incluido no resultado líquido do período"]
[]
[null,null,null,"Resultado líquido do período atribuível a: (2)"]
[null,null,null,"Detentores do capital da empresa-mãe"]
[null,null,null,"Interesses minoritários"]
[null,null,null,null,null,null,null,null,null,null,null,null,null,null,null,"=",{"$f":"+Q47+Q48","v":0},0]
[null,null,null,"Resultado por acção básico"]
[]
[null,null,null,"Outros Dados"]
[null,null,null,"Gastos de Amortização"]
[null,null,null,"Volume de Negócios Internacional "]

{"sheet":"D. Result da empresa pós Proj","index":14,"n_rows":54,"n_cols":26,"rows_kept":54,"cut":false,"hidden":false,"merged":[[51,3,51,13],[51,14,51,15],[52,3,52,13],[52,14,52,15],[53,3,53,13],[53,14,53,15],[3,2,3,17],[6,2,6,5],[10,2,10,17],[12,2,12,26],[15,16,15,25],[19,3,19,13],[22,3,22,13],[16,3,16,13],[17,3,17,13],[17,14,17,15],[18,3,18,13],[26,3,26,13],[27,3,27,13],[28,3,28,13],[23,3,23,13],[24,3,24,13],[25,3,25,13],[32,3,32,13],[33,3,33,13],[34,3,34,13],[29,3,29,13],[30,3,30,13],[31,3,31,13],[38,3,38,13],[39,3,39,13],[40,3,40,13],[35,3,35,13],[36,3,36,13],[37,3,37,13],[41,3,41,13],[43,3,43,13],[43,14,43,15],[45,3,45,13],[45,14,45,15],[49,3,49,13],[49,14,49,15],[46,3,46,13],[46,14,46,15],[47,3,47,13],[47,14,47,15]]}
[]
[null,null,"BENEFICIÁRIO:"]
[]
[null,null,{"$f":"+CAPA!C9","v":0}]
[]
[null,null,"NIF:"]
[null,null,{"$f":"+CAPA!C12","v":0}]
[]
[null,null,"SISTEMA DE INCENTIVOS:"]
[]
[null,null,{"$f":"+CAPA!C16","v":"INOVAR 2020"}]
[]
[null,null,"DEMONSTRAÇÃO DE RESULTADOS COM IMPLEMENTAÇÃO DO PROJECTO"]
[null,null,"  "]
[]
[null,null,null,null,null,null,null,null,null,null,null,null,null,null,null,null,"EMPRESA COM IMPLEMENTAÇÃO DO PROJETO"]
[null,null,null,null,null,null,null,null,null,null,null,null,null,null,"Notas",null,{"$f":"+'Balanço do Projeto'!Q18","v":1900},{"$f":"+'Balanço do Projeto'!R18","v":1901},{"$f":"+'Balanço do Projeto'!S18","v":1902},{"$f":"+'Balanço do Projeto'!T18","v":1903},{"$f":"+'Balanço do Projeto'!U18","v":1904},{"$f":"+'Balanço do Projeto'!V18","v":1905},{"$f":"+'Balanço do Projeto'!W18","v":1906},{"$f":"+'Balanço do Projeto'!X18","v":1907},{"$f":"+'Balanço do Projeto'!Y18","v":1908},{"$f":"+'Balanço do Projeto'!Z18","v":1909}]
[null,null,null,"RENDIMENTOS E GASTOS"]
[null,null,null,"Vendas e serviços prestados",null,null,null,null,null,null,null,null,null,null,null,"+"]
[null,null,null,"Subsídios à exploração",null,null,null,null,null,null,null,null,null,null,null,"+"]
[null,null,null,"Ganhos/perdas imputados de subsidiárias, associadas e empreendimentos conjuntos",null,null,null,null,null,null,null,null,null,null,null,"+/-"]
[null,null,null,"Variação nos inventários da produção",null,null,null,null,null,null,null,null,null,null,null,"+/-"]
[null,null,null,"Trabalhos para a própria entidade",null,null,null,null,null,null,null,null,null,null,null,"+"]
[null,null,null,"Custo das mercadorias vendidas e das matérias consumidas",null,null,null,null,null,null,null,null,null,null,null,"-"]
[null,null,null,"Fornecimentos e serviços externos",null,null,null,null,null,null,null,null,null,null,null,"-"]
[null,null,null,"Gastos com o pessoal",null,null,null,null,null,null,null,null,null,null,null,"-"]
[null,null,null,"Imparidade de inventários (perdas/reversões)",null,null,null,null,null,null,null,null,null,null,null,"-/+"]
[null,null,null,"Imparidade de dívidas a receber (perdas/reversões)",null,null,null,null,null,null,null,null,null,null,null,"-/+"]
[null,null,null,"Provisões (perdas/reduções)",null,null,null,null,null,null,null,null,null,null,null,"-/+"]
[null,null,null,"Imparidade de investimentos não depreciáveis/amortizações (perdas/reversões)",null,null,null,null,null,null,null,null,null,null,null,"-/+"]
[null,null,null,"Aumentos/reduções de justo valor",null,null,null,null,null,null,null,null,null,null,null,"+/-"]
[null,null,null,"Outros rendimentos e ganhos",null,null,null,null,null,null,null,null,null,null,null,"+"]
[null,null,null,"Outros gastos e perdas",null,null,null,null,null,null,null,null,null,null,null,"-"]
[null,null,null,"Resultados antes de depreciações, gastos de financiamento e impostos",null,null,null,null,null,null,null,null,null,null,null,"=",{"$f":"SUM(Q19:Q33)","v":0},{"$f":"SUM(R19:R33)","v":0},0,0,0,0,0,0,0,0]
[null,null,null,"Gastos/reversões de depreciação e de amortização",null,null,null,null,null,null,null,null,null,null,null,"-/+"]
[null,null,null,"Imparidade de investimentos depreciáveis/amorizáveis (perdas/reversões)",null,null,null,null,null,null,null,null,null,null,null,"-/+"]
[null,null,null,"Resultado operacional (antes de gastos de financiamento e impostos)",null,null,null,null,null,null,null,null,null,null,null,"=",{"$f":"+Q34+Q35+Q36","v":0},0,0,0,0,0,0,0,0,0]
[null,null,null,"Juros e rendimentos similares obtidos",null,null,null,null,null,null,null,null,null,null,null,"+"]
[null,null,null,"Juros e gastos similares suportados",null,null,null,null,null,null,null,null,null,null,null,"-"]
[null,null,null,"Resultado antes de impostos",null,null,null,null,null,null,null,null,null,null,null,"=",{"$f":"+Q37+Q38+Q39","v":0},0,0,0,0,0,0,0,0,0]
[null,null,null,"Imposto sobre o rendimento do período",null,null,null,null,null,null,null,null,null,null,null,"-/+"]
[null,null,null,"Resultado líquido do período",null,null,null,null,null,null,null,null,null,null,null,"=",{"$f":"+Q40+Q41","v":0},0,0,0,0,0,0,0,0,0]
[]
[null,null,null,"Resultado das actividades descontinuadas (líquido de impostos) incluido no resultado líquido do período"]
[]
[null,null,null,"Resultado líquido do período atribuível a: (2)"]
[null,null,null,"Detentores do capital da empresa-mãe"]
[null,null,null,"Interesses minoritários"]
[null,null,null,null,null,null,null,null,null,null,null,null,null,null,null,"=",{"$f":"+Q47+Q48","v":0},0,0,0,0,0,0,0,0,0]
[null,null,null,"Resultado por acção básico"]
[]
[null,null,null,"Outros Dados"]
[null,null,null,"Gastos de Amortização"]
[null,null,null,"Volume de Negócios Internacional "]

{"sheet":"Balanço do Projeto","index":15,"n_rows":84,"n_cols":26,"rows_kept":84,"cut":false,"hidden":false,"merged":[[16,3,16,4],[16,16,16,25],[14,2,14,7],[14,8,14,10],[17,3,17,13],[17,14,17,15],[18,3,18,13],[18,14,18,15],[19,3,19,13],[19,14,19,15],[20,3,20,13],[20,14,20,15],[21,3,21,13],[21,14,21,15],[22,3,22,13],[22,14,22,15],[23,3,23,13],[23,14,23,15],[24,3,24,13],[24,14,24,15],[25,3,25,13],[25,14,25,15],[26,3,26,13],[26,14,26,15],[27,3,27,13],[27,14,27,15],[28,3,28,13],[28,14,28,15],[40,14,40,15],[30,3,30,13],[30,14,30,15],[31,14,31,15],[32,14,32,15],[33,14,33,15],[34,14,34,15],[35,14,35,15],[36,14,36,15],[37,14,37,15],[38,14,38,15],[39,14,39,15],[41,14,41,15],[42,14,42,15],[43,14,43,15],[44,14,44,15],[46,3,46,13],[46,14,46,15],[58,14,58,15],[47,14,47,15],[48,14,48,15],[49,14,49,15],[50,14,50,15],[51,14,51,15],[52,14,52,15],[53,14,53,15],[54,14,54,15],[55,14,55,15],[56,14,56,15],[57,14,57,15],[71,14,71,15],[59,14,59,15],[60,14,60,15],[62,14,62,15],[63,14,63,15],[64,14,64,15],[65,14,65,15],[66,14,66,15],[67,14,67,15],[68,14,68,15],[69,14,69,15],[70,14,70,15],[3,2,3,17],[6,2,6,5],[10,2,10,17],[12,2,12,26],[83,14,83,15],[72,14,72,15],[73,14,73,15],[74,14,74,15],[75,14,75,15],[76,14,76,15],[77,14,77,15],[78,14,78,15],[79,14,79,15],[80,14,80,15],[81,14,81,15],[82,14,82,15]]}
[]
[null,null,"BENEFICIÁRIO:"]
[]
[null,null,{"$f":"+CAPA!C9","v":0}]
[]
[null,null,"NIF:"]
[null,null,{"$f":"+CAPA!C12","v":0}]
[]
[null,null,"SISTEMA DE INCENTIVOS:"]
[]
[null,null,{"$f":"+CAPA!C16","v":"INOVAR 2020"}]
[]
[null,null,"BALANÇO DO PROJETO"]
[]
[null,null,"Data de Inicio da despesa:",null,null,null,null,null,{"$f":"+'Balanço da empresa pós Proj'!I15:K15","v":"00:00:00"}]
[]
[null,null,null,"(euros)",null,null,null,null,null,null,null,null,null,null,null,null,"Projecto"]
[null,null,null,"ACTIVO",null,null,null,null,null,null,null,null,null,null,"Notas",null,{"$f":"IF(YEAR($I$15)=\"\",\"\",YEAR($I$15))","v":1900},{"$f":"IF(YEAR($I$15)=\"\",\"\",YEAR($I$15)+1)","v":1901},{"$f":"IF(YEAR($I$15)=\"\",\"\",YEAR($I$15)+2)","v":1902},{"$f":"IF(YEAR($I$15)=\"\",\"\",YEAR($I$15)+3)","v":1903},{"$f":"IF(YEAR($I$15)=\"\",\"\",YEAR($I$15)+4)","v":1904},{"$f":"IF(YEAR($I$15)=\"\",\"\",YEAR($I$15)+5)","v":1905},{"$f":"IF(YEAR($I$15)=\"\",\"\",YEAR($I$15)+6)","v":1906},{"$f":"IF(YEAR($I$15)=\"\",\"\",YEAR($I$15)+7)","v":1907},{"$f":"IF(YEAR($I$15)=\"\",\"\",YEAR($I$15)+8)","v":1908},{"$f":"IF(YEAR($I$15)=\"\",\"\",YEAR($I$15)+9)","v":1909}]
[null,null,null,"Activo não corrente"]
[null,null,null,"activos fixos tangíveis"]
[null,null,null,"Propriedades de investimento"]
[null,null,null,"Goodwill"]
[null,null,null,"Activos Intangíveis"]
[null,null,null,"Activos biológicos"]
[null,null,null,"Participações financeiras - método da equivalência patrimonial"]
[null,null,null,"Participações financeiras - outros métodos"]
[null,null,null,"Accionistas/sócios"]
[null,null,null,"Outros activos financeiros"]
[null,null,null,"Activos por impostos diferidos"]
[null,null,null,null,null,null,null,null,null,null,null,null,null,null,null,null,{"$f":"+Q20+Q21+Q22+Q23+Q24+Q25+Q26+Q27+Q28+Q29","v":0},{"$f":"+R20+R21+R22+R23+R24+R25+R26+R27+R28+R29","v":0},0,0,0,0,0,0,0,0]
[null,null,null,"Activo corrente"]
[null,null,null,"Inventários "]
[null,null,null,"Activos biológicos"]
[null,null,null,"Clientes"]
[null,null,null,"Adiantamentos a fornecedores"]
[null,null,null,"Estado e outros entes públicos"]
[null,null,null,"Accionistas/sócios"]
[null,null,null,"Outras contas a receber"]
[null,null,null,"Diferimentos"]
[null,null,null,"Activos financeiros detidos para negociação"]
[null,null,null,"Outros activos financeiros"]
[null,null,null,"Activos não correntes detidos para venda"]
[null,null,null,"Caixa e depósitos bancários"]
[null,null,null,null,null,null,null,null,null,null,null,null,null,null,null,null,{"$f":"+Q32+Q33+Q34+Q35+Q36+Q37+Q38+Q39+Q40+Q41+Q42+Q43","v":0},{"$f":"+R32+R33+R34+R35+R36+R37+R38+R39+R40+R41+R42+R43","v":0},0,0,0,0,0,0,0,0]
[null,null,null,"TOTAL DO ACTIVO",null,null,null,null,null,null,null,null,null,null,null,null,{"$f":"+Q30+Q44","v":0},0,0,0,0,0,0,0,0,0]
[]
[null,null,null,"CAPITAL PRÓPRIO E PASSIVO"]
[null,null,null,"CAPITAL PRÓPRIO  "]
[null,null,null,"Capital realizado"]
[null,null,null,"Acções (quotas) próprias "]
[null,null,null,"Outros instrumentos de capital próprio"]
[null,null,null,"Prémios de emissão"]
[null,null,null,"Reservas legais"]
[null,null,null,"Outras reservas"]
[null,null,null,"Resultados transitados"]
[null,null,null,"Ajustamentos em activos financeiros"]
[null,null,null,"Excedentes de revalorização"]
[null,null,null,"Outras variações no capital próprio"]
[null,null,null,"Resultado líquido do período "]
[null,null,null,"Interesses minoritários"]
[null,null,null,"Total do capital próprio",null,null,null,null,null,null,null,null,null,null,null,null,{"$f":"+Q49+Q50+Q51+Q52+Q53+Q54+Q55+Q56+Q57+Q58+Q59+Q60","v":0},{"$f":"+R49+R50+R51+R52+R53+R54+R55+R56+R57+R58+R59+R60","v":0},0,0,0,0,0,0,0,0]
[]
[null,null,null,"Passivo"]
[null,null,null,"Passivo não corrente"]
[null,null,null,"Provisões"]
[null,null,null,"Financiamentos obtidos"]
[null,null,null,"Responsabilidades por belefícios pós-emprego"]
[null,null,null,"Passivos por impostos diferidos"]
[null,null,null,"Outras contas a pagar"]
[null,null,null,null,null,null,null,null,null,null,null,null,null,null,null,null,{"$f":"++Q65+Q66+Q67+Q68+Q69","v":0},{"$f":"++R65+R66+R67+R68+R69","v":0},0,0,0,0,0,0,0,0]
[null,null,null,"Passivo corrente"]
[null,null,null,"Fornecedores"]
[null,null,null,"Adiantamento de clientes"]
[null,null,null,"Estado e outros entes públicos"]
[null,null,null,"Accionistas/sócios"]
[null,null,null,"Financiamentos obtidos"]
[null,null,null,"Outras contas a pagar"]
[null,null,null,"Diferimentos"]
[null,null,null,"Passivos financeiros detidos para negociação"]
[null,null,null,"Outros passivos financeiros"]
[null,null,null,"Passivos não correntes detidos para venda"]
[null,null,null,null,null,null,null,null,null,null,null,null,null,null,null,null,{"$f":"+Q72+Q73+Q74+Q75+Q76+Q77+Q78+Q79+Q80+Q81","v":0},{"$f":"+R72+R73+R74+R75+R76+R77+R78+R79+R80+R81","v":0},0,0,0,0,0,0,0,0]
[null,null,null,"Total do passivo",null,null,null,null,null,null,null,null,null,null,null,null,{"$f":"+Q70+Q82","v":0},0,0,0,0,0,0,0,0,0]
[null,null,null,"Total do capital próprio e do passivo",null,null,null,null,null,null,null,null,null,null,null,null,{"$f":"+Q61+Q83","v":0},0,0,0,0,0,0,0,0,0]

{"sheet":"D. Resultados do Projeto","index":16,"n_rows":50,"n_cols":26,"rows_kept":50,"cut":false,"hidden":false,"merged":[[22,3,22,13],[23,3,23,13],[18,3,18,13],[19,3,19,13],[12,2,12,26],[15,16,15,25],[16,3,16,13],[17,3,17,13],[17,14,17,15],[32,3,32,13],[27,3,27,13],[28,3,28,13],[29,3,29,13],[24,3,24,13],[25,3,25,13],[26,3,26,13],[49,3,49,13],[49,14,49,15],[43,3,43,13],[43,14,43,15],[45,3,45,13],[45,14,45,15],[46,3,46,13],[46,14,46,15],[3,2,3,17],[6,2,6,5],[10,2,10,17],[47,3,47,13],[47,14,47,15],[39,3,39,13],[40,3,40,13],[41,3,41,13],[36,3,36,13],[37,3,37,13],[38,3,38,13],[33,3,33,13],[34,3,34,13],[35,3,35,13],[30,3,30,13],[31,3,31,13]]}
[]
[null,null,"BENEFICIÁRIO:"]
[]
[null,null,{"$f":"+CAPA!C9","v":0}]
[]
[null,null,"NIF:"]
[null,null,{"$f":"+CAPA!C12","v":0}]
[]
[null,null,"SISTEMA DE INCENTIVOS:"]
[]
[null,null,{"$f":"+CAPA!C16","v":"INOVAR 2020"}]
[]
[null,null,"DEMONSTRAÇÃO DE RESULTADOS DO PROJECTO"]
[null,null,"  "]
[]
[null,null,null,null,null,null,null,null,null,null,null,null,null,null,null,null,"Projecto"]
[null,null,null,null,null,null,null,null,null,null,null,null,null,null,"Notas",null,{"$f":"+'Balanço do Projeto'!Q18","v":1900},{"$f":"+'Balanço do Projeto'!R18","v":1901},{"$f":"+'Balanço do Projeto'!S18","v":1902},{"$f":"+'Balanço do Projeto'!T18","v":1903},{"$f":"+'Balanço do Projeto'!U18","v":1904},{"$f":"+'Balanço do Projeto'!V18","v":1905},{"$f":"+'Balanço do Projeto'!W18","v":1906},{"$f":"+'Balanço do Projeto'!X18","v":1907},{"$f":"+'Balanço do Projeto'!Y18","v":1908},{"$f":"+'Balanço do Projeto'!Z18","v":1909}]
[null,null,null,"RENDIMENTOS E GASTOS"]
[null,null,null,"Vendas e serviços prestados",null,null,null,null,null,null,null,null,null,null,null,"+"]
[null,null,null,"Subsídios à exploração",null,null,null,null,null,null,null,null,null,null,null,"+"]
[null,null,null,"Ganhos/perdas imputados de subsidiárias, associadas e empreendimentos conjuntos",null,null,null,null,null,null,null,null,null,null,null,"+/-"]
[null,null,null,"Variação nos inventários da produção",null,null,null,null,null,null,null,null,null,null,null,"+/-"]
[null,null,null,"Trabalhos para a própria entidade",null,null,null,null,null,null,null,null,null,null,null,"+"]
[null,null,null,"Custo das mercadorias vendidas e das matérias consumidas",null,null,null,null,null,null,null,null,null,null,null,"-"]
[null,null,null,"Fornecimentos e serviços externos",null,null,null,null,null,null,null,null,null,null,null,"-"]
[null,null,null,"Gastos com o pessoal",null,null,null,null,null,null,null,null,null,null,null,"-"]
[null,null,null,"Imparidade de inventários (perdas/reversões)",null,null,null,null,null,null,null,null,null,null,null,"-/+"]
[null,null,null,"Imparidade de dívidas a receber (perdas/reversões)",null,null,null,null,null,null,null,null,null,null,null,"-/+"]
[null,null,null,"Provisões (perdas/reduções)",null,null,null,null,null,null,null,null,null,null,null,"-/+"]
[null,null,null,"Imparidade de investimentos não depreciáveis/amortizações (perdas/reversões)",null,null,null,null,null,null,null,null,null,null,null,"-/+"]
[null,null,null,"Aumentos/reduções de justo valor",null,null,null,null,null,null,null,null,null,null,null,"+/-"]
[null,null,null,"Outros rendimentos e ganhos",null,null,null,null,null,null,null,null,null,null,null,"+"]
[null,null,null,"Outros gastos e perdas",null,null,null,null,null,null,null,null,null,null,null,"-"]
[null,null,null,"Resultados antes de depreciações, gastos de financiamento e impostos",null,null,null,null,null,null,null,null,null,null,null,"=",{"$f":"SUM(Q19:Q33)","v":0},{"$f":"SUM(R19:R33)","v":0},0,0,0,0,0,0,0,0]
[null,null,null,"Gastos/reversões de depreciação e de amortização",null,null,null,null,null,null,null,null,null,null,null,"-/+"]
[null,null,null,"Imparidade de investimentos depreciáveis/amorizáveis (perdas/reversões)",null,null,null,null,null,null,null,null,null,null,null,"-/+"]
[null,null,null,"Resultado operacional (antes de gastos de financiamento e impostos)",null,null,null,null,null,null,null,null,null,null,null,"=",{"$f":"+Q34+Q35+Q36","v":0},0,0,0,0,0,0,0,0,0]
[null,null,null,"Juros e rendimentos similares obtidos",null,null,null,null,null,null,null,null,null,null,null,"+"]
[null,null,null,"Juros e gastos similares suportados",null,null,null,null,null,null,null,null,null,null,null,"-"]
[null,null,null,"Resultado antes de impostos",null,null,null,null,null,null,null,null,null,null,null,"=",{"$f":"+Q37+Q38+Q39","v":0},0,0,0,0,0,0,0,0,0]
[null,null,null,"Imposto sobre o rendimento do período",null,null,null,null,null,null,null,null,null,null,null,"-/+"]
[null,null,null,"Resultado líquido do período",null,null,null,null,null,null,null,null,null,null,null,"=",{"$f":"+Q40+Q41","v":0},0,0,0,0,0,0,0,0,0]
[]
[null,null,null,"Resultado das actividades descontinuadas (líquido de impostos) incluido no resultado líquido do período"]
[]
[null,null,null,"Resultado líquido do período atribuível a: (2)"]
[null,null,null,"Detentores do capital da empresa-mãe"]
[null,null,null,"Interesses minoritários"]
[null,null,null,null,null,null,null,null,null,null,null,null,null,null,null,"=",{"$f":"+Q47+Q48","v":0},0,0,0,0,0,0,0,0,0]
[null,null,null,"Resultado por acção básico"]

{"sheet":"Folha1","index":17,"n_rows":0,"n_cols":0,"rows_kept":0,"cut":false,"hidden":true,"merged":[]}